Workbook

Sheet Projektdaten
A1: Tabelle zur Ermittlung der förderfähigen Ausgaben (EfA)
A2: Anlage 2 zum Aufruf zur Antragseinreichung zur Förderung von E-Fahrzeugen und notwendiger Ladeinfrastruktur (02/2021)
A4: Mithilfe dieser Tabelle können Sie die Grundlage für Ihre Förderung berechnen. Die Fördersumme berechnet sich aus der Multiplikation der hier berechneten förderfähigen Ausgaben mit der Förderquote. Bitte befüllen Sie diese Anlage, bevor Sie den Antrag in easy-Online ausfüllen. Im Reiter "Fahrzeuge" finden Sie als Auswahlfeld alle Fahrzeuge, für die aktuelle Preislisten veröffentlicht wurden. Für diese Fahrzeuge werden Pauschalen ausgezahlt. Nur wenn das Fahrzeug, welches Sie beantragen möchten, nicht darunter ist, können Sie es im Reiter "Sonderfahrzeuge" selbst eingeben. Gleiches gilt analog für den Bereich Ladeinfrastruktur. Übertragung in easy-Online: Im letzten Reiter "Vorlage für AZA" finden Sie eine Aufstellung Ihrer Fördergegenstände. Bitte übertragen Sie diese in Ihr easy-Online Formular unter der Rubrik "Gesamtfinanzierung". Als "Preis € / Stück" werden die förderfähigen Ausgaben aus der EfA-Tabelle eingetragen. Übermitteln Sie uns die Tabelle bitte in drei Varianten: 1. Im pdf-Format als Anhang zum easy-Online Antrag, 2. als Ausdruck per Post als Anlage zum Antrag sowie 3. im Excel-Format per E-Mail für die Begleitforschung an: elektromobilitaet@now-gmbh.de
A20: Übersichtsblatt Stammdaten - Bitte tragen Sie Ihre Projektdaten ein
A21: Bitte beantworten Sie diese Fragen wahrheitsgemäß. Diese Angaben haben keinen Einfluss auf die Förderung, sie dienen ausschließlich der statistischen Auswertung und Weiterentwicklung des Förderprogramms. | P21: JAoNEIN | Q21: Antragsteller | R21: Raumkategorie | S21: Einsatzkontext | T21: Einsatzgebiet | U21: Standortyp | V21: Beschilderung | W21: E/E
A22: Projekt | B22: Allgemeine Infornationen | C22: Projekt-Kurzbezeichnung (Akronym) | P22: Ja | Q22: gewerblich | R22: Großstadt/Metropolregion > 500.000 EW | S22: Carsharing (fester Stellplatz) | T22: überwiegend städtisch | U22: Firmenparkplatz (Flotte) | V22: Negative Beschilderung mit Zeichen 286, 290.1 | W22: nein
C23: Projekt-Beschreibung (Titel) | P23: Nein | Q23: kommunal | R23: Großstadt > 100.000 EW | S23: Carsharing (mehrere feste Stellplätze) | T23: überwiegend ländlich | U23: Halböffentlich | V23: Positive Beschilderung mit Zeichen 314, 314.1, 315 | W23: PV
C24: Ausführende Institution | R24: Mittelstadt > 50.000 EW | S24: CarSharing (Float) | T24: beides zu gleichen Teilen | U24: Öffentlich am Wohnort | V24: Nein | W24: Wind
C25: Raumkategorie | R25: Kleinstadt > 10.000 EW | S25: Dienstwagen | U25: Öffentlich zentral | W25: PV & Wind
C26: Gibt es einen Bezug zu einem aktuell laufenden oder beantragten Forschungs- und Entwicklungsprojekt? | R26: Stadt/Gemeinde < 10.000 EW | S26: Flotte (Firmen) | U26: Privat
B27: Fahrzeug | C27: Anzahl Fahrzeuge im gesamten Fuhrpark | R27: Landgemeinde | S27: Flotte (Kommunal) | U27: Firmenparkplatz (private Nutzung)
C28: davon bereits E-Fahrzeuge | R28: ausserhalb einer Ansiedlung | S28: Flotte (Mietwagen) | U28: Firmen- oder Betriebsgelände
C29: Einsatzkontext | S29: ÖPNV-Flotte
C30: Planen sie weitere Umstellungen auf alternative Antriebe innerhalb ihrer Flotte bis 2025 (bezogen auf die Gesamtanzahl in Zeile 27)? | S30: Privatwagen
C31: Falls ja: Anzahl der Umstellung in den kommenden 1-2 Jahren (2021/22) | S31: Lieferverkehr
C32: Falls ja: Anzahl der Umstellung in den darauffolgenden 1-3 Jahren (2023 – 2025) | S32: Taxi
C33: Ersetzen die beantragten E-Fahrzeuge vorhandene konventionelle Fahrzeuge? | S33: Leasing
C34: Fahren Ihre Fahrzeuge überwiegend im Stadtgebiet? | S34: Ride-Pooling, Ride-Hailing, Ride-Sharing
C35: An wievielen Tagen im Jahr werden die E-Fahrzeuge durchschnittlich im Einsatz sein? | S35: Kombination
B36: Ladeinfrastruktur | C36: Haben Sie bereits vorhandene Ladeinfrastruktur?
C37: Falls ja, wieviele Ladepunkte?
C38: Standorttyp der geplanten LIS
C39: Wird die LIS öffentlich zugänglich?
C40: Planen Sie eine Beschilderung des Parkplatzes?
C41: Planen Sie den Parkplatz mit Parkraumsensoren auszustatten?
C42: Planen Sie die Errichtung weiterer Ladepunkte?
C43: Falls ja: Wie viele Ladepunkte in den kommenden 1-2 Jahren (2021-22)?
C44: Falls ja: Wie viele Ladepunkte in den darauffolgenden 1-3 Jahren (2023-25)?
B45: Netzintegration & Erneuerbare Energie | C45: Haben Sie bereits ein Energiemanagement- system zur Steuerung elektrischer Verbraucher im Einsatz?
C46: Falls ja: Planen Sie die LIS in das Energiemanagementsystem zu integrieren?
C47: Falls nein: Planen Sie die Einführung eines Energiemanagementsystems im Zusammenhang mit der geplanten LIS?
C48: Betreiben bzw. nutzen Sie eine PV- bzw. Windkraftanlage zur lokalen, dezentralen Stromerzeugung?
C49: Falls ja: Planen Sie die lokal erzeugte erneuerbare Energie zum Laden der E-Fahrzeuge zu nutzen?
C50: Planen Sie die Anschaffung bzw. Erweiterung der lokalen erneuerabren Energieerzeugung in Zusammenhang mit der neuen LIS?

Sheet Fahrzeuge
A1: Tabelle zur Ermittlung der förderfähigen Ausgaben (EfA) | E1: ja | F1: nein | G1: Stand: 09.09.2021 | K1: FKZ: 03EMI4
A2: Hinweise: | G2: ergänzt: 17.04.2024
A3: Die Registerkarte 'Vorlage für AZA' stellt Ihre Eingaben so dar, wie sie in das easyOnline-Formular eingetragen werden müssen. | G3: korrigiert: 17.04.2024
A5: Bitte füllen Sie zunächst die folgenden Auswahlfelder aus:
A6: Antragsteller ist vorsteuerabzugsberechtigt [Auswahlbox]:
A7: Antragsteller ist zur Ausschreibung verpflichtet [Auswahbox]:
A8: Antragsteller ist selbst antragsberechtigt für den BaFa-Umweltbonus [Auswahbox]:
A9: Wählen Sie in der Liste unten die gewünschten Fahrzeuge (Auswahlbox) und die entsprechende Anzahl aus. Geben Sie die zu erwartende durchschnittliche Jahresfahrleistung pro Fahrzeug an.
A10: Für Ladeinfrastruktur und Sonderfahrzeuge wählen Sie bitte die entsprechenden Registerkarten.
A11: Speichern Sie die ausgefüllten Arbeitsblätter als PDF und fügen Sie sie dem Antrag bei.
A12: Grün unterlegte Felder sind Eingabefelder.
A14: Pos. | B14: Typ E-Fahrzeug [Auswahlbox] | C14: Fahrzeugsegment nach Kraftfahrt-Bundesamt | D14: =IF(Fahrzeuge!$C$6="nein","Bruttopreis E-Fahrzeug",IF(Fahrzeuge!$C$6="ja","Nettopreis E-Fahrzeug","Bitte wählen sie aus, ob sie zum Vorsteuerabzug berechtigt sind!")) -> Bitte wählen sie aus, ob sie zum Vorsteuerabzug berechtigt sind! | E14: Typ Referenzfahrzeug | F14: =IF(Fahrzeuge!$C$6="nein","Bruttopreis Referenzfahrzeug",IF(Fahrzeuge!$C$6="ja","Nettopreis Referenzfahrzeug","Bitte wählen sie aus, ob sie zum Vorsteuerabzug berechtigt sind!")) -> Bitte wählen sie aus, ob sie zum Vorsteuerabzug berechtigt sind! | G14: =IF($C$6="nein","Förderfähige Ausgaben pro Fahrzeug (brutto)",IF($C$6="ja","Förderfähige Ausgaben pro Fahrzeug (netto)","Bitte wählen sie aus, ob sie zum Vorsteuerabzug berechtigt sind!")) -> Bitte wählen sie aus, ob sie zum Vorsteuerabzug berechtigt sind! | H14: =IF($C$8="ja","Information*: "&G14&" nach Anrechnung des Umweltbonus","") ->  | I14: Anzahl zu beschaffender Fahrzeuge des Typs | J14: erwartete durchschnittliche Jahres- Fahrleistung pro Fahrzeug in km | K14: Förderfähige Ausgaben | L14: Korrekturfeld PtJ | AI14: Fahrzeugklasse Abkürzungen
A15: 1 | C15: =IF(B15>0,CONCATENATE(VLOOKUP(B15,N40:W249,9,0)," (",VLOOKUP(B15,N40:W249,10,0),")"),"") ->  | D15: =IF($B15>0,IF(Fahrzeuge!$C$6="nein",VLOOKUP($B15,$N$40:$U$249,3,0),IF(Fahrzeuge!$C$6="ja",VLOOKUP($B15,$N$40:$U$249,2,0),"Bitte wählen sie aus, ob sie zum Vorsteuerabzug berechtigt sind!")),"") ->  | E15: =IF($B15>0,VLOOKUP($B15,$N$40:$U$249,4,0),"") ->  | F15: =IF($B15>0,IF(Fahrzeuge!$C$6="nein",VLOOKUP($B15,$N$40:$U$249,6,0),IF(Fahrzeuge!$C$6="ja",VLOOKUP($B15,$N$40:$U$249,5,0),"Bitte wählen sie aus, ob sie zum Vorsteuerabzug berechtigt sind!")),"") ->  | G15: =IF(B15>0,IF($C$6="nein",VLOOKUP($B15,$N$40:$U$249,8,0),IF($C$6="ja",VLOOKUP($B15,$N$40:$U$249,7,0),"Bitte wählen sie aus, ob sie zum Vorsteuerabzug berechtigt sind!")),"") ->  | H15: =IF($H$14>"",IF(B15>0,IF($C$6="nein",VLOOKUP($B15,$N$40:$AA$243,14,0),IF($C$6="ja",VLOOKUP($B15,$N$40:$AA$243,13,0),"")),""),"") ->  | K15: =IF(B15>0,G15*I15,"") -> 
A16: =A15+1 -> 2 | C16: =IF(B16>0,CONCATENATE(VLOOKUP(B16,N40:W249,9,0)," (",VLOOKUP(B16,N40:W249,10,0),")"),"") ->  | D16: =IF($B16>0,IF(Fahrzeuge!$C$6="nein",VLOOKUP($B16,$N$40:$U$249,3,0),IF(Fahrzeuge!$C$6="ja",VLOOKUP($B16,$N$40:$U$249,2,0),"Bitte wählen sie aus, ob sie zum Vorsteuerabzug berechtigt sind!")),"") ->  | E16: =IF($B16>0,VLOOKUP($B16,$N$40:$U$249,4,0),"") ->  | F16: =IF($B16>0,IF(Fahrzeuge!$C$6="nein",VLOOKUP($B16,$N$40:$U$249,6,0),IF(Fahrzeuge!$C$6="ja",VLOOKUP($B16,$N$40:$U$249,5,0),"Bitte wählen sie aus, ob sie zum Vorsteuerabzug berechtigt sind!")),"") ->  | G16: =IF(B16>0,IF($C$6="nein",VLOOKUP($B16,$N$40:$U$249,8,0),IF($C$6="ja",VLOOKUP($B16,$N$40:$U$249,7,0),"Bitte wählen sie aus, ob sie zum Vorsteuerabzug berechtigt sind!")),"") ->  | H16: =IF($H$14>"",IF(B16>0,IF($C$6="nein",VLOOKUP($B16,$N$40:$AA$243,14,0),IF($C$6="ja",VLOOKUP($B16,$N$40:$AA$243,13,0),"")),""),"") -> 
A17: =A16+1 -> 3 | C17: =IF(B17>0,CONCATENATE(VLOOKUP(B17,N40:W249,9,0)," (",VLOOKUP(B17,N40:W249,10,0),")"),"") ->  | D17: =IF($B17>0,IF(Fahrzeuge!$C$6="nein",VLOOKUP($B17,$N$40:$U$249,3,0),IF(Fahrzeuge!$C$6="ja",VLOOKUP($B17,$N$40:$U$249,2,0),"Bitte wählen sie aus, ob sie zum Vorsteuerabzug berechtigt sind!")),"") ->  | E17: =IF($B17>0,VLOOKUP($B17,$N$40:$U$249,4,0),"") ->  | F17: =IF($B17>0,IF(Fahrzeuge!$C$6="nein",VLOOKUP($B17,$N$40:$U$249,6,0),IF(Fahrzeuge!$C$6="ja",VLOOKUP($B17,$N$40:$U$249,5,0),"Bitte wählen sie aus, ob sie zum Vorsteuerabzug berechtigt sind!")),"") ->  | G17: =IF(B17>0,IF($C$6="nein",VLOOKUP($B17,$N$40:$U$249,8,0),IF($C$6="ja",VLOOKUP($B17,$N$40:$U$249,7,0),"Bitte wählen sie aus, ob sie zum Vorsteuerabzug berechtigt sind!")),"") ->  | H17: =IF($H$14>"",IF(B17>0,IF($C$6="nein",VLOOKUP($B17,$N$40:$AA$243,14,0),IF($C$6="ja",VLOOKUP($B17,$N$40:$AA$243,13,0),"")),""),"") -> 
A18: =A17+1 -> 4 | C18: =IF(B18>0,CONCATENATE(VLOOKUP(B18,N40:W249,9,0)," (",VLOOKUP(B18,N40:W249,10,0),")"),"") ->  | D18: =IF($B18>0,IF(Fahrzeuge!$C$6="nein",VLOOKUP($B18,$N$40:$U$249,3,0),IF(Fahrzeuge!$C$6="ja",VLOOKUP($B18,$N$40:$U$249,2,0),"Bitte wählen sie aus, ob sie zum Vorsteuerabzug berechtigt sind!")),"") ->  | E18: =IF($B18>0,VLOOKUP($B18,$N$40:$U$249,4,0),"") ->  | F18: =IF($B18>0,IF(Fahrzeuge!$C$6="nein",VLOOKUP($B18,$N$40:$U$249,6,0),IF(Fahrzeuge!$C$6="ja",VLOOKUP($B18,$N$40:$U$249,5,0),"Bitte wählen sie aus, ob sie zum Vorsteuerabzug berechtigt sind!")),"") ->  | G18: =IF(B18>0,IF($C$6="nein",VLOOKUP($B18,$N$40:$U$249,8,0),IF($C$6="ja",VLOOKUP($B18,$N$40:$U$249,7,0),"Bitte wählen sie aus, ob sie zum Vorsteuerabzug berechtigt sind!")),"") ->  | H18: =IF($H$14>"",IF(B18>0,IF($C$6="nein",VLOOKUP($B18,$N$40:$AA$243,14,0),IF($C$6="ja",VLOOKUP($B18,$N$40:$AA$243,13,0),"")),""),"") -> 
A19: =A18+1 -> 5 | C19: =IF(B19>0,CONCATENATE(VLOOKUP(B19,N40:W249,9,0)," (",VLOOKUP(B19,N40:W249,10,0),")"),"") ->  | D19: =IF($B19>0,IF(Fahrzeuge!$C$6="nein",VLOOKUP($B19,$N$40:$U$249,3,0),IF(Fahrzeuge!$C$6="ja",VLOOKUP($B19,$N$40:$U$249,2,0),"Bitte wählen sie aus, ob sie zum Vorsteuerabzug berechtigt sind!")),"") ->  | E19: =IF($B19>0,VLOOKUP($B19,$N$40:$U$249,4,0),"") ->  | F19: =IF($B19>0,IF(Fahrzeuge!$C$6="nein",VLOOKUP($B19,$N$40:$U$249,6,0),IF(Fahrzeuge!$C$6="ja",VLOOKUP($B19,$N$40:$U$249,5,0),"Bitte wählen sie aus, ob sie zum Vorsteuerabzug berechtigt sind!")),"") ->  | G19: =IF(B19>0,IF($C$6="nein",VLOOKUP($B19,$N$40:$U$249,8,0),IF($C$6="ja",VLOOKUP($B19,$N$40:$U$249,7,0),"Bitte wählen sie aus, ob sie zum Vorsteuerabzug berechtigt sind!")),"") ->  | H19: =IF($H$14>"",IF(B19>0,IF($C$6="nein",VLOOKUP($B19,$N$40:$AA$243,14,0),IF($C$6="ja",VLOOKUP($B19,$N$40:$AA$243,13,0),"")),""),"") -> 
A20: =A19+1 -> 6 | C20: =IF(B20>0,CONCATENATE(VLOOKUP(B20,N40:W249,9,0)," (",VLOOKUP(B20,N40:W249,10,0),")"),"") ->  | D20: =IF($B20>0,IF(Fahrzeuge!$C$6="nein",VLOOKUP($B20,$N$40:$U$249,3,0),IF(Fahrzeuge!$C$6="ja",VLOOKUP($B20,$N$40:$U$249,2,0),"Bitte wählen sie aus, ob sie zum Vorsteuerabzug berechtigt sind!")),"") ->  | E20: =IF($B20>0,VLOOKUP($B20,$N$40:$U$249,4,0),"") ->  | F20: =IF($B20>0,IF(Fahrzeuge!$C$6="nein",VLOOKUP($B20,$N$40:$U$249,6,0),IF(Fahrzeuge!$C$6="ja",VLOOKUP($B20,$N$40:$U$249,5,0),"Bitte wählen sie aus, ob sie zum Vorsteuerabzug berechtigt sind!")),"") ->  | G20: =IF(B20>0,IF($C$6="nein",VLOOKUP($B20,$N$40:$U$249,8,0),IF($C$6="ja",VLOOKUP($B20,$N$40:$U$249,7,0),"Bitte wählen sie aus, ob sie zum Vorsteuerabzug berechtigt sind!")),"") ->  | H20: =IF($H$14>"",IF(B20>0,IF($C$6="nein",VLOOKUP($B20,$N$40:$AA$243,14,0),IF($C$6="ja",VLOOKUP($B20,$N$40:$AA$243,13,0),"")),""),"") -> 
A21: 7 | C21: =IF(B21>0,CONCATENATE(VLOOKUP(B21,N40:W249,9,0)," (",VLOOKUP(B21,N40:W249,10,0),")"),"") ->  | D21: =IF($B21>0,IF(Fahrzeuge!$C$6="nein",VLOOKUP($B21,$N$40:$U$249,3,0),IF(Fahrzeuge!$C$6="ja",VLOOKUP($B21,$N$40:$U$249,2,0),"Bitte wählen sie aus, ob sie zum Vorsteuerabzug berechtigt sind!")),"") ->  | E21: =IF($B21>0,VLOOKUP($B21,$N$40:$U$249,4,0),"") ->  | F21: =IF($B21>0,IF(Fahrzeuge!$C$6="nein",VLOOKUP($B21,$N$40:$U$249,6,0),IF(Fahrzeuge!$C$6="ja",VLOOKUP($B21,$N$40:$U$249,5,0),"Bitte wählen sie aus, ob sie zum Vorsteuerabzug berechtigt sind!")),"") ->  | G21: =IF(B21>0,IF($C$6="nein",VLOOKUP($B21,$N$40:$U$249,8,0),IF($C$6="ja",VLOOKUP($B21,$N$40:$U$249,7,0),"Bitte wählen sie aus, ob sie zum Vorsteuerabzug berechtigt sind!")),"") ->  | H21: =IF($H$14>"",IF(B21>0,IF($C$6="nein",VLOOKUP($B21,$N$40:$AA$243,14,0),IF($C$6="ja",VLOOKUP($B21,$N$40:$AA$243,13,0),"")),""),"") -> 
A22: 8 | C22: =IF(B22>0,CONCATENATE(VLOOKUP(B22,N40:W249,9,0)," (",VLOOKUP(B22,N40:W249,10,0),")"),"") ->  | D22: =IF($B22>0,IF(Fahrzeuge!$C$6="nein",VLOOKUP($B22,$N$40:$U$249,3,0),IF(Fahrzeuge!$C$6="ja",VLOOKUP($B22,$N$40:$U$249,2,0),"Bitte wählen sie aus, ob sie zum Vorsteuerabzug berechtigt sind!")),"") ->  | E22: =IF($B22>0,VLOOKUP($B22,$N$40:$U$249,4,0),"") ->  | F22: =IF($B22>0,IF(Fahrzeuge!$C$6="nein",VLOOKUP($B22,$N$40:$U$249,6,0),IF(Fahrzeuge!$C$6="ja",VLOOKUP($B22,$N$40:$U$249,5,0),"Bitte wählen sie aus, ob sie zum Vorsteuerabzug berechtigt sind!")),"") ->  | G22: =IF(B22>0,IF($C$6="nein",VLOOKUP($B22,$N$40:$U$249,8,0),IF($C$6="ja",VLOOKUP($B22,$N$40:$U$249,7,0),"Bitte wählen sie aus, ob sie zum Vorsteuerabzug berechtigt sind!")),"") ->  | H22: =IF($H$14>"",IF(B22>0,IF($C$6="nein",VLOOKUP($B22,$N$40:$AA$243,14,0),IF($C$6="ja",VLOOKUP($B22,$N$40:$AA$243,13,0),"")),""),"") -> 
A23: =A22+1 -> 9 | C23: =IF(B23>0,CONCATENATE(VLOOKUP(B23,N40:W249,9,0)," (",VLOOKUP(B23,N40:W249,10,0),")"),"") ->  | D23: =IF($B23>0,IF(Fahrzeuge!$C$6="nein",VLOOKUP($B23,$N$40:$U$249,3,0),IF(Fahrzeuge!$C$6="ja",VLOOKUP($B23,$N$40:$U$249,2,0),"Bitte wählen sie aus, ob sie zum Vorsteuerabzug berechtigt sind!")),"") ->  | E23: =IF($B23>0,VLOOKUP($B23,$N$40:$U$249,4,0),"") ->  | F23: =IF($B23>0,IF(Fahrzeuge!$C$6="nein",VLOOKUP($B23,$N$40:$U$249,6,0),IF(Fahrzeuge!$C$6="ja",VLOOKUP($B23,$N$40:$U$249,5,0),"Bitte wählen sie aus, ob sie zum Vorsteuerabzug berechtigt sind!")),"") ->  | G23: =IF(B23>0,IF($C$6="nein",VLOOKUP($B23,$N$40:$U$249,8,0),IF($C$6="ja",VLOOKUP($B23,$N$40:$U$249,7,0),"Bitte wählen sie aus, ob sie zum Vorsteuerabzug berechtigt sind!")),"") ->  | H23: =IF($H$14>"",IF(B23>0,IF($C$6="nein",VLOOKUP($B23,$N$40:$AA$243,14,0),IF($C$6="ja",VLOOKUP($B23,$N$40:$AA$243,13,0),"")),""),"") -> 
A24: 10 | C24: =IF(B24>0,CONCATENATE(VLOOKUP(B24,N40:W249,9,0)," (",VLOOKUP(B24,N40:W249,10,0),")"),"") ->  | D24: =IF($B24>0,IF(Fahrzeuge!$C$6="nein",VLOOKUP($B24,$N$40:$U$249,3,0),IF(Fahrzeuge!$C$6="ja",VLOOKUP($B24,$N$40:$U$249,2,0),"Bitte wählen sie aus, ob sie zum Vorsteuerabzug berechtigt sind!")),"") ->  | E24: =IF($B24>0,VLOOKUP($B24,$N$40:$U$249,4,0),"") ->  | F24: =IF($B24>0,IF(Fahrzeuge!$C$6="nein",VLOOKUP($B24,$N$40:$U$249,6,0),IF(Fahrzeuge!$C$6="ja",VLOOKUP($B24,$N$40:$U$249,5,0),"Bitte wählen sie aus, ob sie zum Vorsteuerabzug berechtigt sind!")),"") ->  | G24: =IF(B24>0,IF($C$6="nein",VLOOKUP($B24,$N$40:$U$249,8,0),IF($C$6="ja",VLOOKUP($B24,$N$40:$U$249,7,0),"Bitte wählen sie aus, ob sie zum Vorsteuerabzug berechtigt sind!")),"") ->  | H24: =IF($H$14>"",IF(B24>0,IF($C$6="nein",VLOOKUP($B24,$N$40:$AA$243,14,0),IF($C$6="ja",VLOOKUP($B24,$N$40:$AA$243,13,0),"")),""),"") -> 
A25: 11 | C25: =IF(B25>0,CONCATENATE(VLOOKUP(B25,N40:W249,9,0)," (",VLOOKUP(B25,N40:W249,10,0),")"),"") ->  | D25: =IF($B25>0,IF(Fahrzeuge!$C$6="nein",VLOOKUP($B25,$N$40:$U$249,3,0),IF(Fahrzeuge!$C$6="ja",VLOOKUP($B25,$N$40:$U$249,2,0),"Bitte wählen sie aus, ob sie zum Vorsteuerabzug berechtigt sind!")),"") ->  | E25: =IF($B25>0,VLOOKUP($B25,$N$40:$U$249,4,0),"") ->  | F25: =IF($B25>0,IF(Fahrzeuge!$C$6="nein",VLOOKUP($B25,$N$40:$U$249,6,0),IF(Fahrzeuge!$C$6="ja",VLOOKUP($B25,$N$40:$U$249,5,0),"Bitte wählen sie aus, ob sie zum Vorsteuerabzug berechtigt sind!")),"") ->  | G25: =IF(B25>0,IF($C$6="nein",VLOOKUP($B25,$N$40:$U$249,8,0),IF($C$6="ja",VLOOKUP($B25,$N$40:$U$249,7,0),"Bitte wählen sie aus, ob sie zum Vorsteuerabzug berechtigt sind!")),"") ->  | H25: =IF($H$14>"",IF(B25>0,IF($C$6="nein",VLOOKUP($B25,$N$40:$AA$243,14,0),IF($C$6="ja",VLOOKUP($B25,$N$40:$AA$243,13,0),"")),""),"") -> 
A26: 12 | C26: =IF(B26>0,CONCATENATE(VLOOKUP(B26,N40:W249,9,0)," (",VLOOKUP(B26,N40:W249,10,0),")"),"") ->  | D26: =IF($B26>0,IF(Fahrzeuge!$C$6="nein",VLOOKUP($B26,$N$40:$U$249,3,0),IF(Fahrzeuge!$C$6="ja",VLOOKUP($B26,$N$40:$U$249,2,0),"Bitte wählen sie aus, ob sie zum Vorsteuerabzug berechtigt sind!")),"") ->  | E26: =IF($B26>0,VLOOKUP($B26,$N$40:$U$249,4,0),"") ->  | F26: =IF($B26>0,IF(Fahrzeuge!$C$6="nein",VLOOKUP($B26,$N$40:$U$249,6,0),IF(Fahrzeuge!$C$6="ja",VLOOKUP($B26,$N$40:$U$249,5,0),"Bitte wählen sie aus, ob sie zum Vorsteuerabzug berechtigt sind!")),"") ->  | G26: =IF(B26>0,IF($C$6="nein",VLOOKUP($B26,$N$40:$U$249,8,0),IF($C$6="ja",VLOOKUP($B26,$N$40:$U$249,7,0),"Bitte wählen sie aus, ob sie zum Vorsteuerabzug berechtigt sind!")),"") ->  | H26: =IF($H$14>"",IF(B26>0,IF($C$6="nein",VLOOKUP($B26,$N$40:$AA$243,14,0),IF($C$6="ja",VLOOKUP($B26,$N$40:$AA$243,13,0),"")),""),"") -> 
A27: =A26+1 -> 13 | C27: =IF(B27>0,CONCATENATE(VLOOKUP(B27,N40:W249,9,0)," (",VLOOKUP(B27,N40:W249,10,0),")"),"") ->  | D27: =IF($B27>0,IF(Fahrzeuge!$C$6="nein",VLOOKUP($B27,$N$40:$U$249,3,0),IF(Fahrzeuge!$C$6="ja",VLOOKUP($B27,$N$40:$U$249,2,0),"Bitte wählen sie aus, ob sie zum Vorsteuerabzug berechtigt sind!")),"") ->  | E27: =IF($B27>0,VLOOKUP($B27,$N$40:$U$249,4,0),"") ->  | F27: =IF($B27>0,IF(Fahrzeuge!$C$6="nein",VLOOKUP($B27,$N$40:$U$249,6,0),IF(Fahrzeuge!$C$6="ja",VLOOKUP($B27,$N$40:$U$249,5,0),"Bitte wählen sie aus, ob sie zum Vorsteuerabzug berechtigt sind!")),"") ->  | G27: =IF(B27>0,IF($C$6="nein",VLOOKUP($B27,$N$40:$U$249,8,0),IF($C$6="ja",VLOOKUP($B27,$N$40:$U$249,7,0),"Bitte wählen sie aus, ob sie zum Vorsteuerabzug berechtigt sind!")),"") ->  | H27: =IF($H$14>"",IF(B27>0,IF($C$6="nein",VLOOKUP($B27,$N$40:$AA$243,14,0),IF($C$6="ja",VLOOKUP($B27,$N$40:$AA$243,13,0),"")),""),"") -> 
A28: 14 | C28: =IF(B28>0,CONCATENATE(VLOOKUP(B28,N40:W249,9,0)," (",VLOOKUP(B28,N40:W249,10,0),")"),"") ->  | D28: =IF($B28>0,IF(Fahrzeuge!$C$6="nein",VLOOKUP($B28,$N$40:$U$249,3,0),IF(Fahrzeuge!$C$6="ja",VLOOKUP($B28,$N$40:$U$249,2,0),"Bitte wählen sie aus, ob sie zum Vorsteuerabzug berechtigt sind!")),"") ->  | E28: =IF($B28>0,VLOOKUP($B28,$N$40:$U$249,4,0),"") ->  | F28: =IF($B28>0,IF(Fahrzeuge!$C$6="nein",VLOOKUP($B28,$N$40:$U$249,6,0),IF(Fahrzeuge!$C$6="ja",VLOOKUP($B28,$N$40:$U$249,5,0),"Bitte wählen sie aus, ob sie zum Vorsteuerabzug berechtigt sind!")),"") ->  | G28: =IF(B28>0,IF($C$6="nein",VLOOKUP($B28,$N$40:$U$249,8,0),IF($C$6="ja",VLOOKUP($B28,$N$40:$U$249,7,0),"Bitte wählen sie aus, ob sie zum Vorsteuerabzug berechtigt sind!")),"") ->  | H28: =IF($H$14>"",IF(B28>0,IF($C$6="nein",VLOOKUP($B28,$N$40:$AA$243,14,0),IF($C$6="ja",VLOOKUP($B28,$N$40:$AA$243,13,0),"")),""),"") -> 
A29: 15 | C29: =IF(B29>0,CONCATENATE(VLOOKUP(B29,N40:W249,9,0)," (",VLOOKUP(B29,N40:W249,10,0),")"),"") ->  | D29: =IF($B29>0,IF(Fahrzeuge!$C$6="nein",VLOOKUP($B29,$N$40:$U$249,3,0),IF(Fahrzeuge!$C$6="ja",VLOOKUP($B29,$N$40:$U$249,2,0),"Bitte wählen sie aus, ob sie zum Vorsteuerabzug berechtigt sind!")),"") ->  | E29: =IF($B29>0,VLOOKUP($B29,$N$40:$U$249,4,0),"") ->  | F29: =IF($B29>0,IF(Fahrzeuge!$C$6="nein",VLOOKUP($B29,$N$40:$U$249,6,0),IF(Fahrzeuge!$C$6="ja",VLOOKUP($B29,$N$40:$U$249,5,0),"Bitte wählen sie aus, ob sie zum Vorsteuerabzug berechtigt sind!")),"") ->  | G29: =IF(B29>0,IF($C$6="nein",VLOOKUP($B29,$N$40:$U$249,8,0),IF($C$6="ja",VLOOKUP($B29,$N$40:$U$249,7,0),"Bitte wählen sie aus, ob sie zum Vorsteuerabzug berechtigt sind!")),"") ->  | H29: =IF($H$14>"",IF(B29>0,IF($C$6="nein",VLOOKUP($B29,$N$40:$AA$243,14,0),IF($C$6="ja",VLOOKUP($B29,$N$40:$AA$243,13,0),"")),""),"") -> 
A30: 16 | C30: =IF(B30>0,CONCATENATE(VLOOKUP(B30,N40:W249,9,0)," (",VLOOKUP(B30,N40:W249,10,0),")"),"") ->  | D30: =IF($B30>0,IF(Fahrzeuge!$C$6="nein",VLOOKUP($B30,$N$40:$U$249,3,0),IF(Fahrzeuge!$C$6="ja",VLOOKUP($B30,$N$40:$U$249,2,0),"Bitte wählen sie aus, ob sie zum Vorsteuerabzug berechtigt sind!")),"") ->  | E30: =IF($B30>0,VLOOKUP($B30,$N$40:$U$249,4,0),"") ->  | F30: =IF($B30>0,IF(Fahrzeuge!$C$6="nein",VLOOKUP($B30,$N$40:$U$249,6,0),IF(Fahrzeuge!$C$6="ja",VLOOKUP($B30,$N$40:$U$249,5,0),"Bitte wählen sie aus, ob sie zum Vorsteuerabzug berechtigt sind!")),"") ->  | G30: =IF(B30>0,IF($C$6="nein",VLOOKUP($B30,$N$40:$U$249,8,0),IF($C$6="ja",VLOOKUP($B30,$N$40:$U$249,7,0),"Bitte wählen sie aus, ob sie zum Vorsteuerabzug berechtigt sind!")),"") ->  | H30: =IF($H$14>"",IF(B30>0,IF($C$6="nein",VLOOKUP($B30,$N$40:$AA$243,14,0),IF($C$6="ja",VLOOKUP($B30,$N$40:$AA$243,13,0),"")),""),"") -> 
A31: =A30+1 -> 17 | C31: =IF(B31>0,CONCATENATE(VLOOKUP(B31,N40:W249,9,0)," (",VLOOKUP(B31,N40:W249,10,0),")"),"") ->  | D31: =IF($B31>0,IF(Fahrzeuge!$C$6="nein",VLOOKUP($B31,$N$40:$U$249,3,0),IF(Fahrzeuge!$C$6="ja",VLOOKUP($B31,$N$40:$U$249,2,0),"Bitte wählen sie aus, ob sie zum Vorsteuerabzug berechtigt sind!")),"") ->  | E31: =IF($B31>0,VLOOKUP($B31,$N$40:$U$249,4,0),"") ->  | F31: =IF($B31>0,IF(Fahrzeuge!$C$6="nein",VLOOKUP($B31,$N$40:$U$249,6,0),IF(Fahrzeuge!$C$6="ja",VLOOKUP($B31,$N$40:$U$249,5,0),"Bitte wählen sie aus, ob sie zum Vorsteuerabzug berechtigt sind!")),"") ->  | G31: =IF(B31>0,IF($C$6="nein",VLOOKUP($B31,$N$40:$U$249,8,0),IF($C$6="ja",VLOOKUP($B31,$N$40:$U$249,7,0),"Bitte wählen sie aus, ob sie zum Vorsteuerabzug berechtigt sind!")),"") ->  | H31: =IF($H$14>"",IF(B31>0,IF($C$6="nein",VLOOKUP($B31,$N$40:$AA$243,14,0),IF($C$6="ja",VLOOKUP($B31,$N$40:$AA$243,13,0),"")),""),"") -> 
A32: =A31+1 -> 18 | C32: =IF(B32>0,CONCATENATE(VLOOKUP(B32,N40:W249,9,0)," (",VLOOKUP(B32,N40:W249,10,0),")"),"") ->  | D32: =IF($B32>0,IF(Fahrzeuge!$C$6="nein",VLOOKUP($B32,$N$40:$U$249,3,0),IF(Fahrzeuge!$C$6="ja",VLOOKUP($B32,$N$40:$U$249,2,0),"Bitte wählen sie aus, ob sie zum Vorsteuerabzug berechtigt sind!")),"") ->  | E32: =IF($B32>0,VLOOKUP($B32,$N$40:$U$249,4,0),"") ->  | F32: =IF($B32>0,IF(Fahrzeuge!$C$6="nein",VLOOKUP($B32,$N$40:$U$249,6,0),IF(Fahrzeuge!$C$6="ja",VLOOKUP($B32,$N$40:$U$249,5,0),"Bitte wählen sie aus, ob sie zum Vorsteuerabzug berechtigt sind!")),"") ->  | G32: =IF(B32>0,IF($C$6="nein",VLOOKUP($B32,$N$40:$U$249,8,0),IF($C$6="ja",VLOOKUP($B32,$N$40:$U$249,7,0),"Bitte wählen sie aus, ob sie zum Vorsteuerabzug berechtigt sind!")),"") ->  | H32: =IF($H$14>"",IF(B32>0,IF($C$6="nein",VLOOKUP($B32,$N$40:$AA$243,14,0),IF($C$6="ja",VLOOKUP($B32,$N$40:$AA$243,13,0),"")),""),"") -> 
A33: =A32+1 -> 19 | C33: =IF(B33>0,CONCATENATE(VLOOKUP(B33,N40:W249,9,0)," (",VLOOKUP(B33,N40:W249,10,0),")"),"") ->  | D33: =IF($B33>0,IF(Fahrzeuge!$C$6="nein",VLOOKUP($B33,$N$40:$U$249,3,0),IF(Fahrzeuge!$C$6="ja",VLOOKUP($B33,$N$40:$U$249,2,0),"Bitte wählen sie aus, ob sie zum Vorsteuerabzug berechtigt sind!")),"") ->  | E33: =IF($B33>0,VLOOKUP($B33,$N$40:$U$249,4,0),"") ->  | F33: =IF($B33>0,IF(Fahrzeuge!$C$6="nein",VLOOKUP($B33,$N$40:$U$249,6,0),IF(Fahrzeuge!$C$6="ja",VLOOKUP($B33,$N$40:$U$249,5,0),"Bitte wählen sie aus, ob sie zum Vorsteuerabzug berechtigt sind!")),"") ->  | G33: =IF(B33>0,IF($C$6="nein",VLOOKUP($B33,$N$40:$U$249,8,0),IF($C$6="ja",VLOOKUP($B33,$N$40:$U$249,7,0),"Bitte wählen sie aus, ob sie zum Vorsteuerabzug berechtigt sind!")),"") ->  | H33: =IF($H$14>"",IF(B33>0,IF($C$6="nein",VLOOKUP($B33,$N$40:$AA$243,14,0),IF($C$6="ja",VLOOKUP($B33,$N$40:$AA$243,13,0),"")),""),"") -> 
A34: =A33+1 -> 20 | C34: =IF(B34>0,CONCATENATE(VLOOKUP(B34,N40:W249,9,0)," (",VLOOKUP(B34,N40:W249,10,0),")"),"") ->  | D34: =IF($B34>0,IF(Fahrzeuge!$C$6="nein",VLOOKUP($B34,$N$40:$U$249,3,0),IF(Fahrzeuge!$C$6="ja",VLOOKUP($B34,$N$40:$U$249,2,0),"Bitte wählen sie aus, ob sie zum Vorsteuerabzug berechtigt sind!")),"") ->  | E34: =IF($B34>0,VLOOKUP($B34,$N$40:$U$249,4,0),"") ->  | F34: =IF($B34>0,IF(Fahrzeuge!$C$6="nein",VLOOKUP($B34,$N$40:$U$249,6,0),IF(Fahrzeuge!$C$6="ja",VLOOKUP($B34,$N$40:$U$249,5,0),"Bitte wählen sie aus, ob sie zum Vorsteuerabzug berechtigt sind!")),"") ->  | G34: =IF(B34>0,IF($C$6="nein",VLOOKUP($B34,$N$40:$U$249,8,0),IF($C$6="ja",VLOOKUP($B34,$N$40:$U$249,7,0),"Bitte wählen sie aus, ob sie zum Vorsteuerabzug berechtigt sind!")),"") ->  | H34: =IF($H$14>"",IF(B34>0,IF($C$6="nein",VLOOKUP($B34,$N$40:$AA$243,14,0),IF($C$6="ja",VLOOKUP($B34,$N$40:$AA$243,13,0),"")),""),"") -> 
A35: Summe | E35: =IF($B35>0,VLOOKUP($B35,$N$61:$U$218,5,0),"") ->  | G35: =IF(B35>0,IF($C$6="nein",VLOOKUP($B35,$N$61:$U$218,9,0),IF($C$6="ja",VLOOKUP($B35,$N$61:$U$218,8,0),"Bitte wählen sie aus, ob sie zum Vorsteuerabzug berechtigt sind!")),"") ->  | I35: =IF(COUNTA(I15:I34)=COUNTA(J15:J34),"","Anzahl oder Fahrleistungs-angabe fehlt") ->  | J35: =IFERROR("Ø: "&TEXT(SUMPRODUCT(I15:I34,J15:J34)/SUM(I15:I34),"#.##0"),"") ->  | K35: =IF(SUM(K15:K34)>0,SUM(K15:K34),"") -> 
B37: =IF(C7>0, IF(C7="nein","","* Bei Beantragung von Fahrzeugsegmenten erfolgt die Abrechnung nach den Pauschalwerten des tatsächlich beschafften Fahrzeugs!"),"") -> 
B38: =IF(H14>"","* Die Informationsspalte zum Umweltbonus zeigt, auf welche förderfähigen Mehrkosten sich unsere Förderung bezieht, sofern sie selbst den Umweltbonus beantragen. (siehe FAQ Frage 24)","") -> 
N39: E-Fahrzeug | O39: E-Listenpreis netto | P39: E-Listenpreis brutto | Q39: Vergleichsfahrzeug | R39: Listenpreis netto | S39: Listenpreis brutto | T39: förderfähig netto | U39: förderfähig brutto | V39: Info Segment | W39: Fahrzeugklassen Abkürzung | X39: ergänzt am: | Y39: BAFA | Z39: förderfähig netto abzgl. BaFa | AA39: förderfähig brutto abzgl. BaFa | AB39: Kommentar | AF39: Ausschreibung? | AG39: =IF(Fahrzeuge!$C$7>0,IF(Fahrzeuge!$C$7="ja","ja","nein"),"") -> 
M40: Änderung Name zu 500e am 17.04.24 | N40: Abarth 500e | O40: =ROUND(P40/1.19,2) -> 36134.45 | P40: 43000 | Q40: Abarth 595 | R40: =ROUND(S40/1.19,2) -> 23521.01 | S40: 27990 | T40: =IF(O40-R40>=0,ROUND(O40-R40,0),0) -> 12613 | U40: 15010 | V40: Kleinwagen | W40: PKW | X40: 2024-04-17 | Y40: =IF(O40>=40000,5000,6000) -> 6000 | Z40: =IF(T40-Y40>0,T40-Y40,0) -> 6613 | AA40: =IF(U40-Y40>0,U40-Y40,0) -> 9010
N41: AIWAYS U5 (alle Versionen) | O41: =(35403+3000)/1.19 -> 32271.42857 | P41: =ROUND(O41*1.19,2) -> 38403 | Q41: VW Tiguan Life 1.5 TSI OPF Gang 110 kW | R41: =ROUND(29901.68/1.16,2) -> 25777.31 | S41: =ROUND(R41*1.19,2) -> 30675 | T41: =ROUND(O41-R41,0) -> 6494 | U41: =ROUND(P41-S41,0) -> 7728 | V41: Geländewagen / SUV | W41: PKW | X41: 2021-06-22 | Y41: =IF(O41>=40000,5000,6000) -> 6000 | Z41: =IF(T41-Y41>0,T41-Y41,0) -> 494 | AA41: =IF(U41-Y41>0,U41-Y41,0) -> 1728
N42: Aixam eCity | O42: =ROUND(P42/1.19,2) -> 12092.44 | P42: 14390 | Q42: Aixam City Pack | R42: =ROUND(S42/1.19,2) -> 9382.35 | S42: 11165 | T42: =ROUND(O42-R42,0) -> 2710 | U42: =ROUND(P42-S42,0) -> 3225 | V42: Leichtfahrzeug | W42: LFZ | X42: 2020-12-22 | AB42: ursprünglicher Preis vom Smart, eigentlich 11.290 EUR
N43: Alfa Romeo Junior Elettrica (alle Versionen) | O43: 33193.28 | P43: 39500 | Q43: Alfa Romeo Junior Ibrida | R43: =ROUND(S43/1.19,2) -> 24789.92 | S43: 29500 | T43: =IF(O43-R43>=0,ROUND(O43-R43,0),0) -> 8403 | U43: 10000 | V43: Geländewagen / SUV | W43: PKW | X43: 2024-04-17
N44: ARI 345 | O44: 6995 | P44: =6995*1.19 -> 8324.05 | Q44: Kymco Maxxer S300 T ONROAD LOF (Quad) | R44: =ROUND(S44/1.19,2) -> 4957.14 | S44: 5899 | T44: =IF(O44-R44>=0,ROUND(O44-R44,0),0) -> 2038 | U44: 2425 | V44: Leichtfahrzeug | W44: LFZ | X44: 2023-09-06
N45: ARI 252 / 452 | O45: 9999 | P45: =9999*1.19 -> 11898.81 | Q45: Aixam Minauto Access | R45: 8394.96 | S45: 9990 | T45: 1604 | U45: 1909 | V45: Leichtfahrzeug | W45: LFZ | X45: 2023-09-06
N46: ARI 458 (150 km) | O46: 17690 | P46: =(14790+2900)*1.19 -> 21051.1 | Q46: Aixam D-Truck Pritsche | R46: 13100.84 | S46: 15590 | T46: 4589 | U46: 5461 | V46: Leichtfahrzeug | W46: LFZ | X46: 2023-09-06
N47: ARI 458 (200 km) | O47: 18690 | P47: =(14790+3900)*1.19 -> 22241.1 | Q47: Aixam D-Truck Pritsche | R47: 13100.84 | S47: 15590 | T47: 5589 | U47: 6651 | V47: Leichtfahrzeug | W47: LFZ | X47: 2023-09-06
N48: ARI 802 (150 km) | O48: 13899 | P48: =(10999+2900)*1.19 -> 16539.81 | Q48: Aixam City Pack | R48: 10075.63 | S48: 11990 | T48: 3823 | U48: 4550 | V48: Leichtfahrzeug | W48: LFZ | X48: 2023-09-06
N49: ARI 802 (200 km) | O49: 14899 | P49: =(10999+3900)*1.19 -> 17729.81 | Q49: Aixam City Pack | R49: 10075.63 | S49: 11990 | T49: 4823 | U49: 5740 | V49: Leichtfahrzeug | W49: LFZ | X49: 2023-09-06
N50: ARI 902 (9,5 kWh) | O50: 13990 | P50: =13990*1.19 -> 16648.1 | Q50: Aixam City Pack | R50: 10075.63 | S50: 11990 | T50: 3914 | U50: 4658 | V50: Leichtfahrzeug | W50: LFZ | X50: 2023-09-06
N51: ARI 902 (10,35 kWh) | O51: 14980 | P51: =(13990+990)*1.19 -> 17826.2 | Q51: Aixam City Pack | R51: 10075.63 | S51: 11990 | T51: 4904 | U51: 5836 | V51: Leichtfahrzeug | W51: LFZ | X51: 2023-09-06
N52: ARI 902 (18 kWh) | O52: 15960 | P52: =(13990+1970)*1.19 -> 18992.4 | Q52: Aixam City Pack | R52: 10075.63 | S52: 11990 | T52: 5884 | U52: 7002 | V52: Leichtfahrzeug | W52: LFZ | X52: 2023-09-06
N53: Audi e-tron 50 quattro (alle Versionen) | O53: 58067.23 | P53: =ROUND(O53*1.19,2) -> 69100 | Q53: Audi A6 allroad quattro 45 TDI 170 kW | R53: =ROUND(60524.71/1.16,2) -> 52176.47 | S53: =ROUND(R53*1.19,2) -> 62090 | T53: =ROUND(O53-R53,0) -> 5891 | U53: 7010 | V53: Geländewagen / SUV | W53: PKW | X53: 2020-12-17 | Y53: =IF(O53>=40000,5000,6000) -> 5000 | Z53: =IF(T53-Y53>0,T53-Y53,0) -> 891 | AA53: =IF(U53-Y53>0,U53-Y53,0) -> 2010
N54: Audi e-tron 55 quattro (alle Versionen) | O54: nicht förderfähig gemäß Aufruf | P54: nicht förderfähig gemäß Aufruf | R54: =ROUND(S54/1.19,2) -> 0 | V54: Geländewagen / SUV | W54: PKW | X54: 2020-12-17 | Y54: 0 | Z54: 0 | AA54: 0
N55: Audi e-tron GT | O55: nicht förderfähig gemäß Aufruf | P55: nicht förderfähig gemäß Aufruf | R55: 0 | S55: 0 | T55: 0 | U55: 0 | V55: Geländewagen / SUV | W55: PKW | X55: 2021-09-09 | Y55: 0 | Z55: 0 | AA55: 0
N56: Audi Q4 e-tron 55 kWh (alle Versionen) | O56: 35210.08 | P56: =ROUND(O56*1.19,2) -> 41900 | Q56: Audi Q3 35 TFSI 6-Gang 110 kW | R56: 30294.12 | S56: =ROUND(R56*1.19,2) -> 36050 | T56: =ROUND(O56-R56,0) -> 4916 | U56: =ROUND(P56-S56,0) -> 5850 | V56: Geländewagen / SUV | W56: PKW | X56: 2021-09-07 | Y56: =IF(O56>=40000,5000,6000) -> 6000 | Z56: 0 | AA56: 0
N57: Audi Q4 e-tron 82 kWh (alle Versionen) | O57: 39915.97 | P57: =ROUND(O57*1.19,2) -> 47500 | Q57: Audi Q3 35 TFSI 6-Gang 110 kW | R57: 30294.12 | S57: =ROUND(R57*1.19,2) -> 36050 | T57: =ROUND(O57-R57,0) -> 9622 | U57: =ROUND(P57-S57,0) -> 11450 | V57: Geländewagen / SUV | W57: PKW | X57: 2021-09-07 | Y57: 6000 | Z57: 3622 | AA57: 5450
N58: Audi Q6 e-tron 100 kWh (alle Versionen) | O58: =ROUND(P58/1.19,2) -> 62773.11 | P58: 74700 | Q58: Audi Q5 advanced 45 TFSI quattro S tronic | R58: =ROUND(S58/1.19,2) -> 50588.24 | S58: 60200 | T58: =IF(O58-R58>=0,ROUND(O58-R58,0),0) -> 12185 | U58: 14500 | V58: Geländewagen / SUV | W58: PKW | X58: 2024-04-03
M59: Änderung 25.01.2024 | N59: Audi Q8 e-tron 50 quattro 89 kWh (alle Versionen) | O59: =ROUND(P59/1.19,2) -> 62521.01 | P59: 74400 | Q59: Audi A6 allroad quattro 45 TDI 180 kW | R59: =ROUND(S59/1.19,2) -> 55966.39 | S59: 66600 | T59: =IF(O59-R59>=0,ROUND(O59-R59,0),0) -> 6555 | U59: 7800 | V59: Geländewagen / SUV | W59: PKW | X59: 2023-09-06 | Y59: 5000 | Z59: =IF(T59-Y59>0,T59-Y59,0) -> 1555 | AA59: =IF(U59-Y59>0,U59-Y59,0) -> 2800
N60: Audi Q8 e-tron 55 quattro (alle Versionen) | O60: nicht förderfähig gemäß Aufruf | P60: nicht förderfähig gemäß Aufruf | R60: =ROUND(S60/1.19,2) -> 0 | S60: 0 | V60: Geländewagen / SUV | W60: PKW
N61: BMW i3 (120Ah, alle Versionen) | O61: 32773.11 | P61: =O61*1.19 -> 39000.0009 | Q61: BMW 218 i Active Tourer | R61: 25042.02 | S61: =R61*1.19 -> 29800.0038 | T61: =ROUND(O61-R61,0) -> 7731 | U61: 9200 | V61: Kompaktklasse | W61: PKW | X61: 2020-12-17 | Y61: 6000 | Z61: 1731 | AA61: 3200
N62: BMW i4 (alle Versionen) | O62: =ROUND(P62/1.19,2) -> 47478.99 | P62: 56500 | Q62: BMW 420i Gran Coupé | R62: =ROUND(S62/1.19,2) -> 43193.28 | S62: 51400 | T62: =IF(O62-R62>=0,ROUND(O62-R62,0),0) -> 4286 | U62: =IF(P62-S62>=0,ROUND(P62-S62,0),0) -> 5100 | V62: Mittelklasse | W62: PKW | X62: 2024-02-19 | Y62: 5000 | Z62: =IF(T62-Y62>0,T62-Y62,0) -> 0 | AA62: =IF(U62-Y62>0,U62-Y62,0) -> 100
N63: BMW i5 (alle Versionen) | O63: =ROUND(P63/1.19,2) -> 58991.6 | P63: 70200 | Q63: BMW 520d | R63: =ROUND(S63/1.19,2) -> 50210.08 | S63: 59750 | T63: =IF(O63-R63>=0,ROUND(O63-R63,0),0) -> 8782 | U63: 10450 | V63: Mittelklasse | W63: PKW | X63: 2024-02-19 | Y63: =IF(O63>=40000,5000,6000) -> 5000 | Z63: =IF(T63-Y63>0,T63-Y63,0) -> 3782 | AA63: =IF(U63-Y63>0,U63-Y63,0) -> 5450
N64: BMW i7 (alle Versionen) | O64: nicht förderfähig gemäß FRL | P64: nicht förderfähig gemäß Aufruf | R64: =ROUND(S64/1.19,2) -> 0 | S64: 0 | V64: Oberklasse | W64: PKW
N65: BMW iX1 (alle Versionen) | O65: =ROUND(P65/1.19,2) -> 46218.49 | P65: 55000 | Q65: BMW X1 xDrive20d | R65: =ROUND(S65/1.19,2) -> 40714.29 | S65: 48450 | T65: =IF(O65-R65>=0,ROUND(O65-R65,0),0) -> 5504 | U65: 6550 | V65: Geländewagen / SUV | W65: PKW | X65: 2023-09-06 | Y65: 5000 | Z65: =IF(T65-Y65>0,T65-Y65,0) -> 504 | AA65: =IF(U65-Y65>0,U65-Y65,0) -> 1550
N66: BMW iX2 (alle Versionen) | O66: =ROUND(P66/1.19,2) -> 47478.99 | P66: 56500 | Q66: BMW X2 xDrive20d | R66: =ROUND(S66/1.19,2) -> 41974.79 | S66: 49950 | T66: =IF(O66-R66>=0,ROUND(O66-R66,0),0) -> 5504 | U66: =IF(P66-S66>=0,ROUND(P66-S66,0),0) -> 6550 | V66: Geländewagen / SUV | W66: PKW | X66: 2024-02-14 | Y66: =IF(O66>=40000,5000,6000) -> 5000 | Z66: =IF(T66-Y66>0,T66-Y66,0) -> 504 | AA66: =IF(U66-Y66>0,U66-Y66,0) -> 1550
N67: BMW iX3 (210 kW) | O67: 54159.66 | P67: =ROUND(O67*1.19,2) -> 64450 | Q67: BMW X3 xDrive30i | R67: =ROUND(53028.56/1.16,2) -> 45714.28 | S67: =ROUNDUP(R67*1.19,2) -> 54400 | T67: 8445 | U67: 10050 | V67: Geländewagen / SUV | W67: PKW | X67: 2020-12-17 | Y67: 5000 | Z67: =IF(T67-Y67>0,T67-Y67,0) -> 3445 | AA67: =IF(U67-Y67>0,U67-Y67,0) -> 5050
N68: BMW iX (alle Versionen) | O68: =ROUND(P68/1.19,2) -> 64957.98 | P68: 77300 | Q68: BMW X5 xDrive30d | R68: =ROUND(S68/1.19,2) -> 72521.01 | S68: 86300 | T68: =IF(O68-R68>=0,ROUND(O68-R68,0),0) -> 0 | U68: 0 | V68: Geländewagen / SUV | W68: PKW | X68: 2024-04-17 | Y68: =IF(O68>=40000,5000,6000) -> 5000 | Z68: =IF(T68-Y68>0,T68-Y68,0) -> 0 | AA68: =IF(U68-Y68>0,U68-Y68,0) -> 0
N69: BYD Atto 3 (alle Versionen) | O69: =ROUND(P69/1.19,2) -> 37500 | P69: 44625 | Q69: Mazda CX 5 | R69: =ROUND(S69/1.19,2) -> 25201.68 | S69: =ROUND(25201.68*1.19,2) -> 29990 | T69: =IF(O69-R69>=0,ROUND(O69-R69,0),0) -> 12298 | U69: 14635 | V69: Kompaktklasse | W69: PKW | X69: 2023-09-06 | Y69: 6000 | Z69: 6298 | AA69: 8635
N70: BYD Dolphin 60,4 kWh (alle Versionen) | O70: =ROUND(P70/1.19,2) -> 27722.69 | P70: 32990 | Q70: Peugeot 308 PureTech 130 | R70: =ROUND(S70/1.19,2) -> 26260.5 | S70: 31250 | T70: =IF(O70-R70>=0,ROUND(O70-R70,0),0) -> 1462 | U70: =IF(P70-S70>=0,ROUND(P70-S70,0),0) -> 1740 | V70: Kompaktklasse | W70: PKW | X70: 2024-02-15 | Y70: =IF(O70>=40000,5000,6000) -> 6000 | Z70: =IF(T70-Y70>0,T70-Y70,0) -> 0 | AA70: =IF(U70-Y70>0,U70-Y70,0) -> 0
N71: BYD Han (alle Versionen) | O71: 59500 | P71: =ROUND(59500*1.19,2) -> 70805 | Q71: Mercedes Benz E 300 d 4MATIC | R71: =ROUND(S71/1.19,2) -> 51565 | S71: 61362.35 | T71: 7935 | U71: 9443 | V71: Mittelklasse | W71: PKW | X71: 2023-09-06 | Y71: 5000 | Z71: 2935 | AA71: 4443
N72: BYD Seal (alle Versionen) | O72: =ROUND(P72/1.19,2) -> 37806.72 | P72: 44990 | Q72: Opel Insignia 90 kW | R72: =ROUND(S72/1.19,2) -> 32142.86 | S72: 38250 | T72: =IF(O72-R72>=0,ROUND(O72-R72,0),0) -> 5664 | U72: =IF(P72-S72>=0,ROUND(P72-S72,0),0) -> 6740 | V72: Mittelklasse | W72: PKW | Y72: =IF(O72>=40000,5000,6000) -> 6000 | Z72: =IF(T72-Y72>0,T72-Y72,0) -> 0 | AA72: =IF(U72-Y72>0,U72-Y72,0) -> 740
N73: BYD Tang (alle Versionen) | O73: 60000 | P73: =ROUND(60000*1.19,2) -> 71400 | Q73: Toyota Land Cruiser (7-Sitzer) | R73: =ROUND(S73/1.19,2) -> 47705.88 | S73: 56770 | T73: 12294 | U73: 14630 | V73: Geländewagen / SUV | W73: PKW | X73: 2023-09-06 | Y73: 5000 | Z73: 7294 | AA73: 9630
N74: Cenntro Metro (13 kWh), L7e | O74: =ROUND(P74/1.19,2) -> 21176.47 | P74: 25200 | Q74: Aixam D-Truck Pritsche | R74: =ROUND(S74/1.19,2) -> 13100.84 | S74: 15590 | T74: 8076 | U74: 9610 | V74: Leichtfahrzeug | W74: LFZ | X74: 2023-09-06
N75: Citroën ë-Berlingo (alle Versionen) | O75: =ROUND(36590/1.19,2) -> 30747.9 | P75: =ROUND(O75*1.19,2) -> 36590 | Q75: Citroën Berlingo Feel 81 kW | R75: =ROUND(23740/1.19,2) -> 19949.58 | S75: =R75*1.19 -> 23740.0002 | T75: 10798 | U75: 12850 | V75: Großraum-Van | W75: PKW | X75: 2021-06-23 | Y75: =IF(O75>=40000,5000,6000) -> 6000 | Z75: =IF(T75-Y75>0,T75-Y75,0) -> 4798 | AA75: =IF(U75-Y75>0,U75-Y75,0) -> 6850
N76: CITROËN C-Zero | O76: =ROUND(P76/1.19,2) -> 18319.33 | P76: 21800 | Q76: Citroën C1 Cti 68 (5 Türer) | R76: =ROUND(S76/1.19,2) -> 8907.56 | S76: 10600 | T76: 9412 | U76: 11200 | V76: Mini | W76: PKW | Y76: 6000 | Z76: 3412 | AA76: 5200
N77: CITROËN ë-C3 (alle Versionen) | O77: =ROUND(P77/1.19,2) -> 19579.83 | P77: 23300 | Q77: CITROËN C3 PureTech 83 | R77: =ROUND(S77/1.19,2) -> 10831.93 | S77: 12890 | T77: =IF(O77-R77>=0,ROUND(O77-R77,0),0) -> 8748 | U77: =IF(P77-S77>=0,ROUND(P77-S77,0),0) -> 10410 | V77: Kleinwagen | W77: PKW | X77: 2024-02-14 | Y77: =IF(O77>=40000,5000,6000) -> 6000 | Z77: =IF(T77-Y77>0,T77-Y77,0) -> 2748 | AA77: =IF(U77-Y77>0,U77-Y77,0) -> 4410
N78: CITROËN e-C4 | O78: =34640/1.19 -> 29109.2437 | P78: 34640 | Q78: CITROËN C4 PureTech 130 6-Gang | R78: =23940/1.19 -> 20117.64706 | S78: =ROUNDUP(R78*1.19,2) -> 23940 | T78: 8992 | U78: 10700 | V78: Kompaktklasse | W78: PKW | X78: 2020-12-17 | Y78: 6000 | Z78: 2992 | AA78: 4700
N79: CITROËN E-Mehari | O79: =ROUND(P79/1.19,2) -> 21235.29 | P79: 25270 | Q79: Fiat 500c | R79: =ROUND(S79/1.19,2) -> 12764.71 | S79: 15190 | T79: 8471 | U79: 10080 | V79: Kleinwagen | W79: PKW | Y79: 6000 | Z79: 2471 | AA79: 4080
N80: CITROËN ë-SpaceTourer 50kWh (nur M1-Versionen) | O80: =ROUND(51440/1.19,2) -> 43226.89 | P80: =O80*1.19 -> 51439.9991 | Q80: CITROËN SpaceTourer M BlueHDi 145 (Business) | R80: =ROUND(39340/1.19,2) -> 33058.82 | S80: =R80*1.19 -> 39339.9958 | T80: =ROUND(O80-R80,0) -> 10168 | U80: 12100 | V80: Großraum-Van | W80: PKW | X80: 2021-01-10 | Y80: 5000 | Z80: 5168 | AA80: 7100
N81: CITROËN ë-SpaceTourer 75kWh (nur M1-Versionen) | O81: =ROUND(57440/1.19,2) -> 48268.91 | P81: =O81*1.19 -> 57440.0029 | Q81: CITROËN SpaceTourer M BlueHDi 145 (Business) | R81: =ROUND(39340/1.19,2) -> 33058.82 | S81: 39339.9958 | T81: 15210 | U81: 18100 | V81: Großraum-Van | W81: PKW | X81: 2021-01-10 | Y81: 5000 | Z81: =IF(T81-Y81>0,T81-Y81,0) -> 10210 | AA81: =IF(U81-Y81>0,U81-Y81,0) -> 13100
N82: CITROËN ë-Jumpy Kombi 50kWh (nur M1-Versionen) | O82: =ROUND(P82/1.19,2) -> 42176.47 | P82: 50190 | Q82: Citroen Jumpy Kombi (alle M-Versionen) | R82: =ROUND(S82/1.19,2) -> 33605.04 | S82: 39990 | T82: =IF(O82-R82>=0,ROUND(O82-R82,0),0) -> 8571 | U82: 10200 | V82: Großraum-Van | W82: PKW | X82: 2023-09-06 | Y82: 5000 | Z82: 3571 | AA82: 5200
N83: CITROËN ë-Jumpy Kombi 75kWh (nur M1-Versionen) | O83: 47218.49 | P83: 56190 | Q83: Citroen Jumpy Kombi (alle M-Versionen) | R83: 33605.04 | S83: 39990 | T83: 13613 | U83: 16200 | V83: Großraum-Van | W83: PKW | X83: 2023-09-06 | Y83: 5000 | Z83: 8613 | AA83: 11200
N84: CUPRA born 58kWh (alle Versionen) | O84: =ROUND(P84/1.19,2) -> 32579.83 | P84: 38770 | Q84: Seat Leon FR 110 kW | R84: =ROUND(S84/1.19,2) -> 25075.63 | S84: 29840 | T84: 7504 | U84: 8930 | V84: Kompaktklasse | W84: PKW | X84: 2023-09-06 | Y84: 6000 | Z84: 1504 | AA84: 2930
N85: CUPRA born 77kWh (alle Versionen) | O85: =ROUND(P85/1.19,2) -> 38529.41 | P85: 45850 | Q85: Seat Leon FR 110 kW | R85: =ROUND(S85/1.19,2) -> 25075.63 | S85: 29840 | T85: 13454 | U85: 16010 | V85: Kompaktklasse | W85: PKW | X85: 2023-09-06 | Y85: 6000 | Z85: 7454 | AA85: 10010
N86: CITROËN DS3 Crossback E-Tense | O86: 32512.61 | P86: =ROUNDDOWN(O86*1.19,2) -> 38690 | Q86: DS3 Crossback PureTech 130 So Chic (N) | R86: 24607.56 | S86: =ROUND(R86*1.19,2) -> 29283 | T86: =ROUND(O86-R86,0) -> 7905 | U86: =ROUND(P86-S86,0) -> 9407 | V86: Geländewagen / SUV | W86: PKW | X86: 2020-12-22 | Y86: =IF(O86>=40000,5000,6000) -> 6000 | Z86: 1905 | AA86: 3407
N87: Dacia Spring (alle Versionen) | O87: =ROUND(P87/1.19,2) -> 19117.65 | P87: 22750 | Q87: Dacia Sandero Stepway | R87: =ROUND(S87/1.19,2) -> 12100.84 | S87: 14400 | T87: =IF(O87-R87>=0,ROUND(O87-R87,0),0) -> 7017 | U87: 8350 | V87: Mini | W87: PKW | X87: 2023-09-06 | Y87: 6000 | Z87: =IF(T87-Y87>0,T87-Y87,0) -> 1017 | AA87: =IF(U87-Y87>0,U87-Y87,0) -> 2350
N88: e.GO-Life 20 | O88: =ROUND(P88/1.19,2) -> 13361.34 | P88: 15899.99 | Q88: Hyundai i10 | R88: =ROUND(S88/1.19,2) -> 8394.96 | S88: 9990 | T88: =ROUND(O88-R88,0) -> 4966 | U88: 5910 | V88: Mini | W88: PKW | Y88: 6000 | Z88: 0 | AA88: 0
N89: e.GO-Life 40 | O89: =ROUND(P89/1.19,2) -> 14621.85 | P89: 17400 | Q89: Hyundai i10 | R89: =ROUND(S89/1.19,2) -> 8394.96 | S89: 9990 | T89: 6227 | U89: 7410 | V89: Mini | W89: PKW | Y89: 6000 | Z89: 227 | AA89: 1410
N90: e.GO-Life 60 | O90: =ROUND(P90/1.19,2) -> 16722.69 | P90: 19900 | Q90: Hyundai i10 | R90: =ROUND(S90/1.19,2) -> 8394.96 | S90: 9990 | T90: 8328 | U90: 9910 | V90: Mini | W90: PKW | Y90: 6000 | Z90: 2328 | AA90: 3910
N91: Elaris BEO (alle Versionen) | O91: =ROUND(P91/1.19,2) -> 36739.5 | P91: =39220+4500 -> 43720 | Q91: VW Tiguan Life 1.5 TSI OPF 6 Gang 110 kW | R91: =ROUND(S91/1.19,2) -> 31121.85 | S91: 37035 | T91: =IF(O91-R91>=0,ROUND(O91-R91,0),0) -> 5618 | U91: 6685 | V91: Geländewagen / SUV | W91: PKW | X91: 2023-09-06 | Y91: 6000 | Z91: =IF(T91-Y91>0,T91-Y91,0) -> 0 | AA91: =IF(U91-Y91>0,U91-Y91,0) -> 685
N92: Elaris DYO (alle Versionen) | O92: 17924.37 | P92: =16830+4500 -> 21330 | Q92: Ligier JS60 CHIC | R92: =ROUND(S92/1.19,2) -> 14284.87 | S92: 16999 | T92: 3640 | U92: 4331 | V92: Mini | W92: PKW | X92: 2023-09-06 | Y92: 6000 | Z92: 0 | AA92: 0
N93: Elaris PIO (alle Versionen) | O93: 15403.36 | P93: =13830+4500 -> 18330 | Q93: Ligier JS50 Club | R93: 11344.54 | S93: 13500 | T93: 4059 | U93: 4830 | V93: Mini | W93: PKW | X93: 2023-09-06 | Y93: 6000 | Z93: 0 | AA93: 0
M94: zuordnung Fzg-kl. Am 21.02.2024 geändert | N94: Fiat 500 elektro 23,8 kWh (alle Versionen) | O94: 26042.02 | P94: 30990 | Q94: Fiat 500 Hybrid | R94: 14277.31 | S94: 16990 | T94: 11765 | U94: 14000 | V94: Mini | W94: PKW | Y94: 6000 | Z94: 5765 | AA94: 8000
M95: zuordnung Fzg-kl. Am 21.02.2024 geändert | N95: Fiat 500 elektro 42,0 kWh (alle Versionen) | O95: 29403.36 | P95: 34990 | Q95: Fiat 500 Hybrid | R95: 14277.31 | S95: 16990 | T95: 15126 | U95: 18000 | V95: Mini | W95: PKW | Y95: 6000 | Z95: 9126 | AA95: 12000
N96: Fiat 600 e 54 kWh (alle Versionen) | O96: =ROUND(P96/1.19,2) -> 30663.87 | P96: 36490 | Q96: Fiat 600 Hybrid | R96: =ROUND(S96/1.19,2) -> 21000 | S96: 24990 | T96: =IF(O96-R96>=0,ROUND(O96-R96,0),0) -> 9664 | U96: =IF(P96-S96>=0,ROUND(P96-S96,0),0) -> 11500 | V96: Kompaktklasse | W96: PKW | X96: 2024-02-14 | Y96: =IF(O96>=40000,5000,6000) -> 6000 | Z96: =IF(T96-Y96>0,T96-Y96,0) -> 3664 | AA96: =IF(U96-Y96>0,U96-Y96,0) -> 5500
N97: Fiat E-Doblò (nur M1 Versionen) | O97: =ROUND(P97/1.19,2) -> 31550 | P97: 37544.5 | Q97: Fiat Doblò | R97: =ROUND(S97/1.19,2) -> 21100 | S97: 25109 | T97: =IF(O97-R97>=0,ROUND(O97-R97,0),0) -> 10450 | U97: 12436 | V97: Großraum-Van | W97: PKW | X97: 2023-09-06 | Y97: 6000 | Z97: =IF(T97-Y97>0,T97-Y97,0) -> 4450 | AA97: =IF(U97-Y97>0,U97-Y97,0) -> 6436
N98: Fiat E-Ducato Kombi 35 L2H2 47 kWh (nur M1-Versionen) | O98: 58500 | P98: =O98*1.19 -> 69615 | Q98: Fiat Maxi Hochraumkombi 35 | R98: 40550 | S98: =R98*1.19 -> 48254.5 | T98: 17950 | U98: 21361 | V98: Großraum-Van | W98: PKW | X98: 2020-12-22 | Y98: 5000 | Z98: 12950 | AA98: 16361
N99: Fiat E-Ducato Kombi 35 L2H2 79 kWh (nur M1-Versionen) | O99: 75500 | P99: =O99*1.19 -> 89845 | Q99: Fiat Maxi Hochraumkombi 35 | R99: 40550 | S99: =R99*1.19 -> 48254.5 | T99: 34950 | U99: 41591 | V99: Großraum-Van | W99: PKW | X99: 2020-12-22 | Y99: 5000 | Z99: 29950 | AA99: 36591
N100: Fiat E-Ulysse 50 kWh (nur M1-Versionen) | O100: =ROUND(P100/1.19,2) -> 52932.77 | P100: 62990 | Q100: Toyota Proace Verso 106 kW, L1-Version | R100: =ROUND(S100/1.19,2) -> 44302.52 | S100: 52720 | T100: =IF(O100-R100>=0,ROUND(O100-R100,0),0) -> 8630 | U100: 10270 | V100: Großraum-Van | W100: PKW | X100: 2023-09-06 | Y100: 5000 | Z100: =IF(T100-Y100>0,T100-Y100,0) -> 3630 | AA100: =IF(U100-Y100>0,U100-Y100,0) -> 5270
N101: Fiat E-Ulysse 75 kWh (nur M1-Versionen) | O101: 57974.79 | P101: 68990 | Q101: Toyota Proace Verso 106 kW, L1-Version | R101: 44302.52 | S101: 52720 | T101: 13672 | U101: 16270 | V101: Großraum-Van | W101: PKW | X101: 2023-09-06 | Y101: 5000 | Z101: 8672 | AA101: 11270
N102: Fisker Ocean 75 kWh (alle Versionen) | O102: 34923.95 | P102: =38882+(ROUND(2250*1.19,2)) -> 41559.5 | Q102: VW Tiguan Allspace Life 1.5 TSI | R102: 34176.47 | S102: 40670 | T102: 747 | U102: 890 | V102: Geländewagen / SUV | W102: PKW | X102: 2023-09-06 | Y102: 6000 | Z102: 0 | AA102: 0
N103: Fisker Ocean 100 kWh (alle Versionen) | O103: 47899.58 | P103: =54323+(ROUND(2250*1.19,2)) -> 57000.5 | Q103: VW Tiguan Allspace Life 2.0 TSI 4 MOTION | R103: 39953.78 | S103: 47545 | T103: 7946 | U103: 9456 | V103: Geländewagen / SUV | W103: PKW | X103: 2023-09-06 | Y103: 5000 | Z103: 2946 | AA103: 4456
N104: Ford Explorer EV Extended Range (alle Versionen) | O104: 41596.64 | P104: 49500 | Q104: Ford Kuga 110 kW, 6-Gang | R104: 33571.43 | S104: 39950 | T104: 8025 | U104: 9550 | V104: Geländewagen / SUV | W104: PKW | X104: 2024-03-26 | Y104: =IF(O104>=40000,5000,6000) -> 5000 | Z104: =IF(T104-Y104>0,T104-Y104,0) -> 3025 | AA104: =IF(U104-Y104>0,U104-Y104,0) -> 4550
N105: Ford Mustang Mach-E Standard Range 75,7 kWh (alle Versionen) | O105: =46900/1.19 -> 39411.76471 | P105: 46900 | Q105: Ford Mondeo 2,0l EcoBlue Limousine 110 kW | R105: =36554.62/1.16 -> 31512.60345 | S105: =ROUND(R105*1.19,2) -> 37500 | T105: 7899 | U105: 9400 | V105: Geländewagen / SUV | W105: PKW | X105: 2020-12-17 | Y105: 6000 | Z105: 1899 | AA105: 3400
N106: Ford Mustang Mach-E Extended Range 98,7 kWh (alle Versionen) | O106: =54475/1.19 -> 45777.31092 | P106: 54475 | Q106: Ford Mondeo 2,0l EcoBlue Limousine 110 kW | R106: =36554.62/1.16 -> 31512.60345 | S106: 37500 | T106: 14265 | U106: 16975 | V106: Geländewagen / SUV | W106: PKW | X106: 2020-12-17 | Y106: 5000 | Z106: 9265 | AA106: 11975
N107: Ford Tourneo Custom Bus 82,5 kWh (alle Versionen) | O107: =ROUND(P107/1.19,2) -> 56150 | P107: 66818.5 | Q107: Ford Tourneo Custom Bus | R107: =ROUND(S107/1.19,2) -> 42850 | S107: 50991.5 | T107: =IF(O107-R107>=0,ROUND(O107-R107,0),0) -> 13300 | U107: =IF(P107-S107>=0,ROUND(P107-S107,0),0) -> 15827 | V107: Großraum-Van | W107: PKW | X107: 2024-02-14 | Y107: =IF(O107>=40000,5000,6000) -> 5000 | Z107: =IF(T107-Y107>0,T107-Y107,0) -> 8300 | AA107: =IF(U107-Y107>0,U107-Y107,0) -> 10827
N108: Genesis GV60 (alle Versionen) | O108: =ROUND(P108/1.19,2) -> 53109.24 | P108: 63200 | Q108: Hyundai Tucson Allrad, 169 kW (Prime) | R108: =ROUND(S108/1.19,2) -> 40361.34 | S108: 48030 | T108: =IF(O108-R108>=0,ROUND(O108-R108,0),0) -> 12748 | U108: 15170 | V108: Geländewagen / SUV | W108: PKW | X108: 2023-09-06 | Y108: 5000 | Z108: =IF(T108-Y108>0,T108-Y108,0) -> 7748 | AA108: =IF(U108-Y108>0,U108-Y108,0) -> 10170
N109: Genesis ELECTRIFIED GV70 (alle Versionen) | O109: 56554.62 | P109: 67300 | Q109: Genesis GV70 Sport | R109: 43739.5 | S109: 52050 | T109: 12815 | U109: 15250 | V109: Geländewagen / SUV | W109: PKW | X109: 2023-09-06 | Y109: 5000 | Z109: 7815 | AA109: 10250
N110: Genesis ELECTRIFIED G80 (alle Versionen) | O110: 60672.27 | P110: 72200 | Q110: Genesis G80 Luxury | R110: 49899.16 | S110: 59380 | T110: 10773 | U110: 12820 | V110: Mittelklasse | W110: PKW | X110: 2023-09-06 | Y110: 5000 | Z110: 5773 | AA110: 7820
N111: Goupil G2 5,2 kWh L7e (alle Versionen) | O111: 22456.04 | P111: =ROUND(22456.04*1.19,2) -> 26722.69 | Q111: Aixam D-Truck Pritsche | R111: 13100.84 | S111: 15590 | T111: 9355 | U111: 11133 | V111: Leichtfahrzeug | W111: LFZ | X111: 2023-09-06
N112: Goupil G2 8,6 kWh L7e (alle Versionen) | O112: 24933.38 | P112: =ROUND(24933.38*1.19,2) -> 29670.72 | Q112: Aixam D-Truck Pritsche | R112: 13100.84 | S112: 15590 | T112: 11833 | U112: 14081 | V112: Leichtfahrzeug | W112: LFZ | X112: 2023-09-06
N113: Goupil G4 9 kWh L7e (alle Versionen) | O113: 36235.1 | P113: =ROUND(36235.1*1.19,2) -> 43119.77 | Q113: Piaggio Porter SR LPG | R113: 18600 | S113: 22134 | T113: 17635 | U113: 20986 | V113: Leichtfahrzeug | W113: LFZ | X113: 2023-09-06
N114: Goupil G4 13,8 kWh L7e (alle Versionen) | O114: 41098.1 | P114: =ROUND(41098.1*1.19,2) -> 48906.74 | Q114: Piaggio Porter SR LPG | R114: 18600 | S114: 22134 | T114: 22498 | U114: 26773 | V114: Leichtfahrzeug | W114: LFZ | X114: 2023-09-06
M115: Bezeichnung geändert 19.02.2024 | N115: GWM Ora 03 300 48 kWh (ehem. Funky Cat, alle Versionen) | O115: =ROUND(P115/1.19,2) -> 32764.71 | P115: 38990 | Q115: VW Golf Life 1.5 TSI OPF 6-Gang 110 kW | R115: =ROUND(S115/1.19,2) -> 26907.56 | S115: 32020 | T115: =IF(O115-R115>=0,ROUND(O115-R115,0),0) -> 5857 | U115: 6970 | V115: Kompaktklasse | W115: PKW | X115: 2023-09-06 | Y115: =IF(O115>=40000,5000,6000) -> 6000 | Z115: =IF(T115-Y115>0,T115-Y115,0) -> 0 | AA115: =IF(U115-Y115>0,U115-Y115,0) -> 970
M116: Bezeichnung geändert 19.02.2024 | N116: GWM Ora 03 400 63 kWh (ehem. Funky Cat, alle Versionen) | O116: =ROUND(P116/1.19,2) -> 37386.55 | P116: 44490 | Q116: VW Golf Life 1.5 TSI OPF 6-Gang 110 kW | R116: 26907.56 | S116: 32020 | T116: 10479 | U116: 12470 | V116: Kompaktklasse | W116: PKW | X116: 2023-09-06 | Y116: =IF(O116>=40000,5000,6000) -> 6000 | Z116: =IF(T116-Y116>0,T116-Y116,0) -> 4479 | AA116: =IF(U116-Y116>0,U116-Y116,0) -> 6470
M117: zuordnung Fzg-kl. Am 21.02.2024 geändert | N117: Honda e (alle Versionen) | O117: =ROUND(P117/1.19,2) -> 33529.41 | P117: 39900 | Q117: Honda Jazz 1.5 i-MMD 80 kW | R117: 20042.02 | S117: 23850 | T117: 13487 | U117: 16050 | V117: Kleinwagen | W117: PKW | X117: 2020-12-17 | Y117: 6000 | Z117: 7487 | AA117: 10050
N118: Honda e:Ny1 68,8 kWh (alle Versionen) | O118: =ROUND(P118/1.19,2) -> 39991.6 | P118: 47590 | Q118: Honda HR-V | R118: =ROUND(S118/1.19,2) -> 30252.1 | S118: 36000 | T118: =IF(O118-R118>=0,ROUND(O118-R118,0),0) -> 9740 | U118: 11590 | V118: Geländewagen / SUV | W118: PKW | X118: 2024-02-14 | Y118: =IF(O118>=40000,5000,6000) -> 6000 | Z118: =IF(T118-Y118>0,T118-Y118,0) -> 3740 | AA118: =IF(U118-Y118>0,U118-Y118,0) -> 5590
N119: Hyundai IONIQ Elektro 38,3 kWh | O119: =ROUND(34458.82/1.16,2) -> 29705.88 | P119: 35350 | Q119: Hyundai i30 5T 1.5 T­GDI, 6­Gang, 117 kW | R119: =ROUND(25139.83/1.16,2) -> 21672.27 | S119: 25790 | T119: 8034 | U119: 9560 | V119: Kompaktklasse | W119: PKW | X119: 2020-12-22 | Y119: 6000 | Z119: 2034 | AA119: 3560
N120: Hyundai Kona Elektro 39,2 kWh | O120: =ROUND(36250/1.19,2) -> 30462.18 | P120: =ROUNDUP(O120*1.19,2) -> 36250 | Q120: Hyundai Kona 1.6 GDI, Select | R120: =ROUND(26900/1.19,2) -> 22605.04 | S120: 26900 | T120: 7857 | U120: 9350 | V120: Geländewagen / SUV | W120: PKW | X120: 2020-12-22 | Y120: 6000 | Z120: 1857 | AA120: 3350
N121: Hyundai Kona Elektro 64,0 kWh | O121: =ROUND(41850/1.19,2) -> 35168.07 | P121: =ROUND(O121*1.19,2) -> 41850 | Q121: Hyundai Kona 1.6 GDI, Select | R121: =ROUND(26900/1.19,2) -> 22605.04 | S121: 26900 | T121: =ROUND(O121-R121,0) -> 12563 | U121: =ROUND(P121-S121,0) -> 14950 | V121: Geländewagen / SUV | W121: PKW | X121: 2020-12-22 | Y121: 6000 | Z121: 6563 | AA121: 8950
N122: Hyundai IONIQ 5 Elektro 58 kWh | O122: =ROUND(41900/1.19,2) -> 35210.08 | P122: =ROUND(O122*1.19,2) -> 41900 | Q122: Hyundai Tucson 48 V 1.6 T-GDI, 110 kW | R122: =ROUND(30500/1.19,2) -> 25630.25 | S122: =ROUND(R122*1.19,2) -> 30500 | T122: 9580 | U122: 11400 | V122: Geländewagen / SUV | W122: PKW | X122: 2020-12-22 | Y122: =IF(O122>=40000,5000,6000) -> 6000 | Z122: 3580 | AA122: 5400
N123: Hyundai IONIQ 5 Elektro 72,6 kWh | O123: =ROUND((41900+3200)/1.19,2) -> 37899.16 | P123: =ROUND(O123*1.19,2) -> 45100 | Q123: Hyundai Tucson 48 V 1.6 T-GDI, 110 kW | R123: =ROUND(30500/1.19,2) -> 25630.25 | S123: =ROUND(R123*1.19,2) -> 30500 | T123: 12269 | U123: 14600 | V123: Geländewagen / SUV | W123: PKW | X123: 2020-12-22 | Y123: 6000 | Z123: 6269 | AA123: 8600
N124: Jaguar I-Pace EV400 | O124: =ROUND(75351.26/1.16,2) -> 64957.98 | P124: =ROUND(O124*1.19,2) -> 77300 | Q124: Jaguar F-Pace D300 AWD | R124: =ROUND(64070/1.16,2) -> 55232.76 | S124: 65726.98 | T124: =ROUND(O124-R124,0) -> 9725 | U124: 11573 | V124: Geländewagen / SUV | W124: PKW | X124: 2020-12-18 | Y124: 5000 | Z124: 4725 | AA124: 6573 | AB124: Smart Fourfour Benzin nicht mehr erhältlich, daher Vergleich mit altem Smart
N125: Jeep Avenger Elektro | O125: =ROUND(P125/1.19,2) -> 31092.44 | P125: 37000 | Q125: VW Taigo Life 70kW | R125: =ROUND(S125/1.19,2) -> 20844.54 | S125: 24805 | T125: =IF(O125-R125>=0,ROUND(O125-R125,0),0) -> 10248 | U125: 12195 | V125: Kompaktklasse | W125: PKW | X125: 2023-09-06 | Y125: 6000 | Z125: =IF(T125-Y125>0,T125-Y125,0) -> 4248 | AA125: =IF(U125-Y125>0,U125-Y125,0) -> 6195
N126: Kia e-Soul 39,2 kWh | O126: 28563.03 | P126: =ROUNDDOWN(O126*1.19,2) -> 33990 | Q126: Kia Niro 1.6 GDI Hybrid | R126: =ROUND(26990/1.19,2) -> 22680.67 | S126: 26990 | T126: 5882 | U126: 7000 | V126: Mini-Van | W126: PKW | X126: 2020-12-22 | Y126: 6000 | Z126: 0 | AA126: 1000 | AB126: Smart Fourfour Benzin nicht mehr erhältlich, daher Vergleich mit Twingo, Baugleich
N127: Kia e-Soul 64,0 kWh | O127: 31756.3 | P127: =ROUND(O127*1.19,2) -> 37790 | Q127: Kia Niro 1.6 GDI Hybrid | R127: 22680.67 | S127: 26990 | T127: 9076 | U127: 10800 | V127: Mini-Van | W127: PKW | X127: 2020-12-22 | Y127: 6000 | Z127: 3076 | AA127: 4800
N128: Kia e-Niro 39,2 kWh | O128: 29655.46 | P128: =ROUND(O128*1.19,2) -> 35290 | Q128: Kia Niro 1.6 GDI Hybrid | R128: =ROUND(26990/1.19,2) -> 22680.67 | S128: 26990 | T128: 6975 | U128: 8300 | V128: Geländewagen / SUV | W128: PKW | X128: 2020-12-22 | Y128: 6000 | Z128: 975 | AA128: 2300
N129: Kia e-Niro 64,0 kWh | O129: 32848.74 | P129: =ROUND(O129*1.19,2) -> 39090 | Q129: Kia Niro 1.6 GDI Hybrid | R129: =ROUND(26990/1.19,2) -> 22680.67 | S129: 26990 | T129: 10168 | U129: 12100 | V129: Geländewagen / SUV | W129: PKW | X129: 2020-12-22 | Y129: 6000 | Z129: 4168 | AA129: 6100
N130: Kia Niro EV 64,8 kWh | O130: =ROUND(P130/1.19,2) -> 39991.6 | P130: 47590 | Q130: Kia Niro 1.6 GDI Hybrid Vision | R130: =ROUND(S130/1.19,2) -> 28563.03 | S130: 33990 | T130: 11429 | U130: =ROUND(P130-S130,0) -> 13600 | V130: Geländewagen / SUV | W130: PKW | X130: 2022-09-20 | Y130: 6000 | Z130: =IF(T130-Y130>0,T130-Y130,0) -> 5429 | AA130: =IF(U130-Y130>0,U130-Y130,0) -> 7600
M131: ffA angepasst nach alter EfA (JR) | N131: Kia EV6 (alle Versionen) | O131: 37806.72 | P131: 44990 | Q131: Kia Sportage Edition 7 1,6 T GDI | R131: 23352.94 | S131: 27790 | T131: 14454 | U131: =ROUND(P131-S131,0) -> 17200 | V131: Geländewagen / SUV | W131: PKW | X131: 2022-09-21 | Y131: =IF(O131>=40000,5000,6000) -> 6000 | Z131: =IF(T131-Y131>0,T131-Y131,0) -> 8454 | AA131: =IF(U131-Y131>0,U131-Y131,0) -> 11200
N132: Kia EV9 (alle Versionen) | O132: =ROUND(P132/1.19,2) -> 60915.97 | P132: 72490 | Q132: Kia Sorento | R132: =ROUND(S132/1.19,2) -> 48899.16 | S132: 58190 | T132: =IF(O132-R132>=0,ROUND(O132-R132,0),0) -> 12017 | U132: 14300 | V132: Geländewagen / SUV | W132: PKW | X132: 2024-02-23
N133: Lexus UX 300e (alle Versionen) | O133: 37344.54 | P133: 44440 | Q133: Lexus UX 250h | R133: 35420.17 | S133: 42150 | T133: 1924 | U133: 2290 | V133: Geländewagen / SUV | W133: PKW | X133: 2023-09-06 | Y133: 6000 | Z133: 0 | AA133: 0
N134: Maserati GranTurismo Folgore | O134: nicht förderfähig gemäß Aufruf | P134: nicht förderfähig gemäß Aufruf | R134: 0 | V134: Oberklasse | W134: PKW | X134: 2024-03-13
N135: Maserati Grecale Folgore | O135: nicht förderfähig gemäß Aufruf | P135: nicht förderfähig gemäß Aufruf | R135: 0 | V135: Geländewagen / SUV | W135: PKW | X135: 2024-03-13
N136: Mazda MX-30 e-SKYACTIV | O136: 28142.86 | P136: =ROUND(O136*1.19,2) -> 33490 | Q136: CX-30 SKYACTIV-G 2.0 M Hybrid | R136: =ROUND(24790/1.19,2) -> 20831.93 | S136: 24790 | T136: =ROUND(O136-R136,0) -> 7311 | U136: =ROUND(P136-S136,0) -> 8700 | V136: Geländewagen / SUV | W136: PKW | X136: 2020-12-17 | Y136: 6000 | Z136: 1311 | AA136: 2700
N137: Mercedes Benz smart EQ fortwo (alle Versionen) | O137: 18436.97 | P137: =ROUNDUP(O137*1.19,2) -> 21940 | Q137: Mercedes Benz smart 52 kW | R137: =ROUND(S137/1.19,2) -> 9382.35 | S137: 11165 | T137: =ROUND(O137-R137,0) -> 9055 | U137: 10775 | V137: Mini | W137: PKW | X137: 2020-12-22 | Y137: 6000 | Z137: 3055 | AA137: 4775
N138: Mercedes Benz smart EQ forfour (alle Versionen) | O138: 22030.25 | P138: 22600 | Q138: Renault Twingo SCe 75 Intens | R138: =ROUND(13637.31/1.16,2) -> 11756.3 | S138: =ROUND(R138*1.19,2) -> 13990 | T138: 10274 | U138: 8610 | V138: Kompaktklasse | W138: PKW | X138: 2020-12-22 | Y138: 6000 | Z138: 4274 | AA138: 2610
N139: Mercedes Benz EQA 250 | O139: 39950 | P139: =ROUND(O139*1.19,2) -> 47540.5 | Q139: Mercedes Benz GLA 180 | R139: 30920 | S139: =ROUND(R139*1.19,2) -> 36794.8 | T139: =ROUND(O139-R139,0) -> 9030 | U139: 10746 | V139: Geländewagen / SUV | W139: PKW | X139: 2021-06-15 | Y139: 6000 | Z139: 3030 | AA139: 4746 | AB139: Vergleich mit qashqai ev. Problematisch
N140: Mercedes Benz EQB (alle Versionen) | O140: =ROUND(P140/1.19,2) -> 43985 | P140: 52342.15 | Q140: MB GLB SUV Q95 | R140: =ROUND(S140/1.19,2) -> 34415 | S140: 40953.85 | T140: 9570 | U140: 11388 | V140: Geländewagen / SUV | W140: PKW | X140: 2023-09-06 | Y140: =IF(O140>=40000,5000,6000) -> 5000 | Z140: =IF(T140-Y140>0,T140-Y140,0) -> 4570 | AA140: =IF(U140-Y140>0,U140-Y140,0) -> 6388 | AB140: 02.03.2023, aus EMI4
N141: Mercedes Benz EQC 400 | O141: 59900 | P141: =ROUND(O141*1.19,2) -> 71281 | Q141: Mercedes Benz GLC 300 4MATIC | R141: 45880 | S141: =ROUND(R141*1.19,2) -> 54597.2 | T141: 14020 | U141: 16684 | V141: Geländewagen / SUV | W141: PKW | X141: 2020-12-17 | Y141: =IF(O141>=40000,5000,6000) -> 5000 | Z141: 9020 | AA141: 11684 | AB141: Vergleich mit qashqai ev. Problematisch, stärkerer Motor und stärkere Batterie
N142: Mercedes Benz EQE (alle Versionen) | O142: =ROUND(P142/1.19,2) -> 55800 | P142: 66402 | Q142: Mercedes Benz E220 d | R142: =ROUND(S142/1.19,2) -> 45230 | S142: 53823.7 | T142: =IF(O142-R142>=0,ROUND(O142-R142,0),0) -> 10570 | U142: 12578 | V142: Mittelklasse | W142: PKW | X142: 2023-09-06 | Y142: 5000 | Z142: =IF(T142-Y142>0,T142-Y142,0) -> 5570 | AA142: =IF(U142-Y142>0,U142-Y142,0) -> 7578
N143: Mercedes Benz EQE SUV | O143: nicht förderfähig gemäß Aufruf | P143: nicht förderfähig gemäß Aufruf | R143: =ROUND(S143/1.19,2) -> 0 | V143: Geländewagen / SUV | W143: PKW
N144: Mercedes Benz EQS | O144: nicht förderfähig gemäß Aufruf | P144: nicht förderfähig gemäß Aufruf | R144: 0 | V144: Oberklasse | W144: PKW
N145: Mercedes Benz EQS SUV | O145: nicht förderfähig gemäß Aufruf | P145: nicht förderfähig gemäß Aufruf | R145: 0 | V145: Geländewagen / SUV | W145: PKW
N146: Mercedes Benz EQV 250 60kWh (alle Versionen) | O146: =ROUND(P146/1.19,2) -> 59550 | P146: 70864.5 | Q146: Mercedes Benz V250 d, Lang | R146: =ROUND(S146/1.19,2) -> 52190 | S146: 62106.1 | T146: 7360 | U146: 8758 | V146: Großraum-Van | W146: PKW | X146: 2023-09-06 | Y146: 5000 | Z146: 2360 | AA146: 3758
N147: Mercedes Benz EQV 300 (alle Versionen) | O147: 59990 | P147: =ROUND(O147*1.19,2) -> 71388.1 | Q147: Mercedes Benz V220D Lang | R147: 44720 | S147: =ROUND(R147*1.19,2) -> 53216.8 | T147: 15270 | U147: 18171 | V147: Großraum-Van | W147: PKW | X147: 2020-12-17 | Y147: 5000 | Z147: 10270 | AA147: 13171 | AB147: letzte Liste vom NV200 nehmen, Wechsel auf NV250?
N148: Mercedes-Benz eCitan (nur M1-Versionen) | O148: =ROUND(P148/1.19,2) -> 36220 | P148: =ROUND(36220*1.19,2) -> 43101.8 | Q148: Mercedes Benz Citan 75 kW | R148: =ROUND(S148/1.19,2) -> 21590 | S148: =ROUND(21590*1.19,2) -> 25692.1 | T148: =IF(O148-R148>=0,ROUND(O148-R148,0),0) -> 14630 | U148: 17410 | V148: Großraum-Van | W148: PKW | X148: 2023-09-06 | Y148: 6000 | Z148: =IF(T148-Y148>0,T148-Y148,0) -> 8630 | AA148: =IF(U148-Y148>0,U148-Y148,0) -> 11410
N149: Mercedes-Benz EQT (nur M1-Versionen) | O149: 41550 | P149: 49444.5 | Q149: Mercedes Benz T 160, 75 kW | R149: 27510 | S149: 32736.9 | T149: 14040 | U149: 16708 | V149: Großraum-Van | W149: PKW | X149: 2023-09-06 | Y149: 5000 | Z149: 9040 | AA149: 11708
N150: Mercedes Benz eVito Tourer 90 kWh (nur M1-Versionen) | O150: 53990 | P150: =ROUND(O150*1.19,2) -> 64248.1 | Q150: MB Vito Tourer, Base, Lang | R150: =ROUND(34846.4/1.16,2) -> 30040 | S150: =ROUND(R150*1.19,2) -> 35747.6 | T150: 23950 | U150: 28501 | V150: Großraum-Van | W150: PKW | X150: 2020-12-17 | Y150: 5000 | Z150: 18950 | AA150: 23501 | AB150: Ampera-E, nur Lagerfahrzeuge
N151: MG MG4 51 kWh (alle Versionen) | O151: =ROUND(P151/1.19,2) -> 26882.35 | P151: 31990 | Q151: Kia Ceed Vision 1.0 T-GDI 74 kW | R151: =ROUND(S151/1.19,2) -> 20747.9 | S151: 24690 | T151: =IF(O151-R151>=0,ROUND(O151-R151,0),0) -> 6134 | U151: 7300 | V151: Kompaktklasse | W151: PKW | X151: 2023-09-06 | Y151: 6000 | Z151: =IF(T151-Y151>0,T151-Y151,0) -> 134 | AA151: =IF(U151-Y151>0,U151-Y151,0) -> 1300
N152: MG MG4 64 kWh (alle Versionen) | O152: 30243.7 | P152: 35990 | Q152: Kia Ceed Vision 1.0 T-GDI 74 kW | R152: 20747.9 | S152: 24690 | T152: 9496 | U152: 11300 | V152: Kompaktklasse | W152: PKW | X152: 2023-09-06 | Y152: 6000 | Z152: 3496 | AA152: 5300
N153: MG MG5 50 kWh (alle Versionen) | O153: 29823.53 | P153: =32812.5+2677.5 -> 35490 | Q153: Kia Ceed Sportwagen 1.0 T-GDI | R153: 21588.24 | S153: 25690 | T153: 8235 | U153: 9800 | V153: Mittelklasse | W153: PKW | X153: 2023-09-06 | Y153: 6000 | Z153: 2235 | AA153: 3800
N154: MG MG5 61 kWh (alle Versionen) | O154: 32344.54 | P154: =35812.5+2677.5 -> 38490 | Q154: Kia Ceed Sportwagen 1.0 T-GDI | R154: 21588.24 | S154: 25690 | T154: 10756 | U154: 12800 | V154: Mittelklasse | W154: PKW | X154: 2023-09-06 | Y154: 6000 | Z154: 4756 | AA154: 6800
N155: MG Marvel-R (alle Versionen) | O155: =ROUND(P155/1.19,2) -> 39487.39 | P155: 46990 | Q155: VW Tiguan Life 1.5 TSI OPF 6 Gang 110 kW | R155: =ROUND(S155/1.19,2) -> 31121.85 | S155: 37035 | T155: 8366 | U155: 9955 | V155: Geländewagen / SUV | W155: PKW | X155: 2023-09-06 | Y155: 6000 | Z155: 2366 | AA155: 3955
N156: MG ZS EV (alle Versionen) | O156: =(31990)/1.19 -> 26882.35294 | P156: =ROUND(O156*1.19,2) -> 31990 | Q156: Peugeot 2008 PureTech 130 Active | R156: =ROUND(S156/1.19,2) -> 19537.82 | S156: 23250 | T156: 7345 | U156: 8740 | V156: Kompaktklasse | W156: PKW | X156: 2021-06-22 | Y156: =IF(O156>=40000,5000,6000) -> 6000 | Z156: 1345 | AA156: 2740
M157: zuordnung Fzg-kl. Am 21.02.2024 geändert | N157: MINI COOPER SE 3-Türer (alle Versionen) | O157: =ROUND(P157/1.19,2) -> 31680.67 | P157: 37700 | Q157: Mini Cooper S 3-Türer | R157: =ROUND(S157/1.19,2) -> 26974.79 | S157: 32100 | T157: =IF(O157-R157>=0,ROUND(O157-R157,0),0) -> 4706 | U157: 5600 | V157: Mini | W157: PKW | X157: 2020-12-17 | Y157: 6000 | Z157: 0 | AA157: 0 | AB157: Preis aktuell / Preisliste vorhanden
M158: zuordnung Fzg-kl. Am 21.02.2024 geändert | N158: MINI COOPER E 36,6 kWh MY 24 (alle Versionen) | O158: 27647.06 | P158: 32900 | Q158: MINI Cooper C | R158: =ROUND(S158/1.19,2) -> 24285.71 | S158: 28900 | T158: 3361 | U158: 4000 | V158: Mini | W158: PKW | X158: 2024-02-14 | Y158: =IF(O158>=40000,5000,6000) -> 6000 | Z158: =IF(T158-Y158>0,T158-Y158,0) -> 0 | AA158: =IF(U158-Y158>0,U158-Y158,0) -> 0
M159: zuordnung Fzg-kl. Am 21.02.2024 geändert | N159: MINI COOPER SE 49.2 kWh MY 24(alle Versionen) | O159: 31008.4 | P159: 36900 | Q159: MINI Cooper C | R159: =ROUND(S159/1.19,2) -> 24285.71 | S159: 28900 | T159: 6723 | U159: 8000 | V159: Mini | W159: PKW | X159: 2024-02-14 | Y159: 6000 | Z159: 723 | AA159: 2000
N160: MINI Countryman E 64,6 kWh, U25 (alle Versionen) | O160: =ROUND(P160/1.19,2) -> 36554.62 | P160: 43500 | Q160: MINI Countryman C | R160: =ROUND(S160/1.19,2) -> 33529.41 | S160: 39900 | T160: =IF(O160-R160>=0,ROUND(O160-R160,0),0) -> 3025 | U160: 3600 | V160: Geländewagen / SUV | W160: PKW | X160: 2024-02-14 | Y160: 6000 | Z160: 0 | AA160: 0
N161: Nio ET5 75 kWh (alle Versionen) | O161: =ROUND(P161/1.19,2) -> 50000 | P161: 59500 | Q161: BMW 330i xDrive | R161: =ROUND(S161/1.19,2) -> 48991.6 | S161: 58300 | T161: =IF(O161-R161>=0,ROUND(O161-R161,0),0) -> 1008 | U161: 1200 | V161: Mittelklasse | W161: PKW | X161: 2023-09-06 | Y161: 5000 | Z161: 0 | AA161: 0
N162: Nio ET5 100 kWh (alle Versionen) | O162: 57563.03 | P162: 68500 | Q162: BMW 330i xDrive | R162: 48991.6 | S162: 58300 | T162: 8571 | U162: 10200 | V162: Mittelklasse | W162: PKW | X162: 2023-09-06 | Y162: 5000 | Z162: 3571 | AA162: 5200
N163: Nissan ARIYA 63 kWh (alle Versionen) | O163: 39907.56 | P163: 47490 | Q163: Nissan X-Trail | R163: 33109.24 | S163: 39400 | T163: 6798 | U163: 8090 | V163: Geländewagen / SUV | W163: PKW | X163: 2023-09-06 | Y163: 6000 | Z163: 798 | AA163: 2090
N164: Nissan ARIYA 87 kWh (alle Versionen) | O164: 53352.94 | P164: 63490 | Q164: Nissan X-Trail | R164: 37310.92 | S164: 44400 | T164: 16042 | U164: 19090 | V164: Geländewagen / SUV | W164: PKW | X164: 2023-09-06 | Y164: 5000 | Z164: 11042 | AA164: 14090
N165: Nissan Leaf ZE1 110 kW (40 kwh) | O165: =32363.03/1.16 -> 27899.16379 | P165: =ROUND(O165*1.19,2) -> 33200 | Q165: Nissan Qashqai 1.3 DIG-T 103 kW | R165: =ROUND(25495.63/1.16,2) -> 21978.99 | S165: =ROUND(R165*1.19,2) -> 26155 | T165: =ROUND(O165-R165,0) -> 5920 | U165: 7045 | V165: Kompaktklasse | W165: PKW | X165: 2020-12-22 | Y165: 6000 | Z165: 0 | AA165: 1045
N166: Nissan Leaf ZE1 160 kW (62 kwh) | O166: =37383.19/1.16 -> 32226.88793 | P166: =ROUND(O166*1.19,2) -> 38350 | Q166: Nissan Qashqai 1.3 DIG-T 117 kW | R166: =ROUND(29705/1.19,2) -> 24962.18 | S166: =ROUNDUP(R166*1.19,2) -> 29705 | T166: 7265 | U166: 8645 | V166: Kompaktklasse | W166: PKW | X166: 2020-12-22 | Y166: 6000 | Z166: 1265 | AA166: 2645 | AB166: PKW-Zulassung???
N167: Nissan e-NV200 (nur M1-Versionen) | O167: 36498 | P167: =ROUND(O167*1.19,2) -> 43432.62 | Q167: Nissan NV200 Evalia 5-Sitzer | R167: =ROUND(S167/1.19,2) -> 19823.53 | S167: 23590 | T167: =ROUND(O167-R167,0) -> 16674 | U167: 19843 | V167: Großraum-Van | W167: PKW | X167: 2020-12-22 | Y167: 6000 | Z167: 10674 | AA167: 13843
N168: Nissan Townstar EV (nur M1-Versionen) | O168: =ROUND(P168/1.19,2) -> 28660 | P168: 34105.4 | Q168: Nissan Townstar (nur M1-Versionen) | R168: 20210 | S168: 24049.9 | T168: =IF(O168-R168>=0,ROUND(O168-R168,0),0) -> 8450 | U168: 10056 | V168: Großraum-Van | W168: PKW | X168: 2023-09-06 | Y168: 6000 | Z168: 2450 | AA168: 4056
M169: L6e (45 km/h) | N169: Ökoflitzer Paxster 2.2 L6e (alle Versionen) | O169: 16900 | P169: =ROUND(16900*1.19,2) -> 20111 | Q169: Aixam D-Truck Pritsche | R169: 13100.84 | S169: 15590 | T169: 3799 | U169: 4521 | V169: Leichtfahrzeug | W169: LFZ | X169: 2023-09-06
M170: L7e (60 km/h) | N170: Ökoflitzer Paxster 2.2 L7e (alle Versionen) | O170: 17329 | P170: =ROUNDDOWN((16900+429)*1.19,2) -> 20621.51 | Q170: Aixam D-Truck Pritsche | R170: 13100.84 | S170: 15590 | T170: 4228 | U170: 5032 | V170: Leichtfahrzeug | W170: LFZ | X170: 2023-09-06
N171: Opel Ampera-E Plus | O171: =ROUND(41906.22/1.16,2) -> 36126.05 | P171: =O171*1.19 -> 42989.9995 | Q171: Opel Astra 1.4 Direct Injection Turbo 107 kW | R171: =ROUND(27025/1.19,2) -> 22710.08 | S171: =ROUND(R171*1.19,2) -> 27025 | T171: =ROUND(O171-R171,0) -> 13416 | U171: 15965 | V171: Kompaktklasse | W171: PKW | X171: 2020-12-22 | Y171: 6000 | Z171: 7416 | AA171: 9965
N172: Opel Astra Electric (alle Versionen) | O172: =ROUND(P172/1.19,2) -> 37865.55 | P172: 45060 | Q172: Opel Astra (96 kW) | R172: =ROUND(S172/1.19,2) -> 26663.87 | S172: 31730 | T172: =IF(O172-R172>=0,ROUND(O172-R172,0),0) -> 11202 | U172: 13330 | V172: Kompaktklasse | W172: PKW | X172: 2023-09-06 | Y172: 6000 | Z172: 5202 | AA172: 7330
N173: Opel Combo-e Life (alle Versionen) | O173: =ROUND(38100/1.19,2) -> 32016.81 | P173: =O173*1.19 -> 38100.0039 | Q173: Opel Combo Life Edition 81 kW | R173: =ROUND(25180/1.19,2) -> 21159.66 | S173: =R173*1.19 -> 25179.9954 | T173: =ROUND(O173-R173,0) -> 10857 | U173: =ROUND(P173-S173,0) -> 12920 | V173: Großraum-Van | W173: PKW | X173: 2021-06-23 | Y173: =IF(O173>=40000,5000,6000) -> 6000 | Z173: 4857 | AA173: 6920
N174: Opel Corsa-e | O174: =ROUND(30650/1.19,2) -> 25756.3 | P174: =O174*1.19 -> 30649.997 | Q174: Opel Corsa Edition (74 kW) | R174: =ROUND(18250/1.19,2) -> 15336.13 | S174: =ROUNDUP(R174*1.19,2) -> 18250 | T174: 10420 | U174: 12400 | V174: Kleinwagen | W174: PKW | X174: 2020-12-22 | Y174: 6000 | Z174: 4420 | AA174: 6400
M175: zuordnung Fzg-kl. Am 21.02.2024 geändert | N175: Opel Mokka-E (alle Versionen) | O175: =ROUND(P175/1.19,2) -> 34159.66 | P175: 40650 | Q175: Opel Mokka 1.2 Elegance 74 kW | R175: =ROUND(S175/1.19,2) -> 22168.07 | S175: 26380 | T175: =IF(O175-R175>=0,ROUND(O175-R175,0),0) -> 11992 | U175: 14270 | V175: Geländewagen / SUV | W175: PKW | X175: 2020-12-18 | Y175: 6000 | Z175: 5992 | AA175: 8270
N176: Opel Rocks-e (alle Versionen) | O176: =ROUND(P176/1.19,2) -> 6714.29 | P176: 7990 | Q176: Kymco Maxxer S300 T ONROAD LOF (Quad) | R176: =ROUND(S176/1.19,2) -> 4957.14 | S176: 5899 | T176: =IF(O176-R176>=0,ROUND(O176-R176,0),0) -> 1757 | U176: 2091 | V176: Leichtfahrzeug | W176: LFZ | X176: 2023-09-06
N177: Opel Zafira-E Life 50 kWh (nur M1-Versionen) | O177: =ROUND(55904.2/1.16,2) -> 48193.28 | P177: =O177*1.19 -> 57350.0032 | Q177: Opel Zafira Life M 88 kW | R177: =ROUND(43602.35/1.16,2) -> 37588.23 | S177: =ROUNDUP(R177*1.19,2) -> 44730 | T177: 10605 | U177: 12620 | V177: Großraum-Van | W177: PKW | X177: 2020-12-18 | Y177: 5000 | Z177: 5605 | AA177: 7620
N178: Opel Zafira-E Life 75 kWh (nur M1-Versionen) | O178: =ROUND(61752.94/1.16,2) -> 53235.29 | P178: 63349.9951 | Q178: Opel Zafira Life M 88 kW | R178: =ROUND(43602.35/1.16,2) -> 37588.23 | S178: =ROUNDUP(R178*1.19,2) -> 44730 | T178: 15647 | U178: 18620 | V178: Großraum-Van | W178: PKW | X178: 2020-12-18 | Y178: 5000 | Z178: 10647 | AA178: 13620
N179: Opel Vivaro-E Kombi 50 kWh (nur M1-Versionen) | O179: 42250 | P179: 50277.5 | Q179: Opel Kombi 90 kW | R179: 34410 | S179: =R179*1.19 -> 40947.9 | T179: =ROUND(O179-R179,0) -> 7840 | U179: 9330 | V179: Großraum-Van | W179: PKW | X179: 2020-12-22 | Y179: 5000 | Z179: 2840 | AA179: 4330
N180: Opel Vivaro-E Kombi 75 kWh (nur M1-Versionen) | O180: 47250 | P180: 56227.5 | Q180: Opel Kombi 90 kW | R180: 34410 | S180: 40947.9 | T180: =ROUND(O180-R180,0) -> 12840 | U180: 15280 | V180: Großraum-Van | W180: PKW | X180: 2020-12-22 | Y180: 5000 | Z180: 7840 | AA180: 10280 | AB180: T60 AWD ist nicht mehr lieferbar, Vergleich mit S 60 B5 184 kW, EUR Netto 39621,85???
N181: Peugeot e-208 (alle Versionen) | O181: =ROUND(30852.1/1.16,2) -> 26596.64 | P181: =ROUND(O181*1.19,2) -> 31650 | Q181: Peugeot 208 PureTech 100 Active Pack | R181: =ROUND(18862.18/1.16,2) -> 16260.5 | S181: =ROUNDUP(R181*1.19,2) -> 19350 | T181: =ROUND(O181-R181,0) -> 10336 | U181: =ROUND(P181-S181,0) -> 12300 | V181: Kleinwagen | W181: PKW | X181: 2020-12-22 | Y181: 6000 | Z181: 4336 | AA181: 6300
N182: Peugeot e-2008 (alle Versionen) | O182: =ROUND(34556.3/1.16,2) -> 29789.91 | P182: =ROUNDUP(O182*1.19,2) -> 35450 | Q182: Peugeot 2008 PureTech 130 Active | R182: =ROUND(23346.22/1.16,2) -> 20126.05 | S182: =ROUNDUP(R182*1.19,2) -> 23950 | T182: 9664 | U182: 11500 | V182: Geländewagen / SUV | W182: PKW | X182: 2020-12-22 | Y182: 6000 | Z182: 3664 | AA182: 5500 | AB182: Neuer Clio ist nur als 3-Türer erhältlich
N183: Peugeot e-308 (alle Versionen) | O183: =ROUND(P183/1.19,2) -> 37617.65 | P183: 44765 | Q183: Peugeot 308 PureTech 130 | R183: =ROUND(S183/1.19,2) -> 26260.5 | S183: 31250 | T183: =IF(O183-R183>=0,ROUND(O183-R183,0),0) -> 11357 | U183: 13515 | V183: Kompaktklasse | W183: PKW | X183: 2023-09-29 | Y183: =IF(O183>=40000,5000,6000) -> 6000 | Z183: =IF(T183-Y183>0,T183-Y183,0) -> 5357 | AA183: =IF(U183-Y183>0,U183-Y183,0) -> 7515
N184: Peugeot E-3008 (alle Versionen) 73 kWh | O184: 40882.35 | P184: 48650 | Q184: Peugeot 3008 | R184: 32983.19 | S184: 39250 | T184: 7899 | U184: 9400 | V184: Geländewagen / SUV | W184: PKW | X184: 2024-03-26 | Y184: =IF(O184>=40000,5000,6000) -> 5000 | Z184: =IF(T184-Y184>0,T184-Y184,0) -> 2899 | AA184: =IF(U184-Y184>0,U184-Y184,0) -> 4400
N185: Peugeot E-Expert Kombi 50kWh (nur M1-Versionen) | O185: =ROUND(48388.57/1.16,2) -> 41714.28 | P185: =ROUNDUP(O185*1.19,2) -> 49640 | Q185: Peugeot Expert L2 BlueHDi 120 88 kW | R185: =ROUND(34205.38/1.16,2) -> 29487.4 | S185: =ROUNDDOWN(R185*1.19,2) -> 35090 | T185: =ROUND(O185-R185,0) -> 12227 | U185: =ROUND(P185-S185,0) -> 14550 | V185: Großraum-Van | W185: PKW | X185: 2020-12-22 | Y185: 5000 | Z185: 7227 | AA185: 9550 | AB185: Neuer Clio ist nur als 3-Türer erhältlich
N186: Peugeot E-Expert Kombi 75kWh (nur M1-Versionen) | O186: =ROUND(P186/1.19,2) -> 48689.08 | P186: 57940 | Q186: Toyota Proace Verso 106 kW, L1-Version | R186: =ROUND(S186/1.19,2) -> 44302.52 | S186: 52720 | T186: =IF(O186-R186>=0,ROUND(O186-R186,0),0) -> 4387 | U186: 5220 | V186: Großraum-Van | W186: PKW | X186: 2023-09-06 | Y186: 5000 | Z186: 0 | AA186: 220
N187: Peugeot E-Traveller 50kWh (nur M1-Versionen) | O187: =ROUND(54490.76/1.16,2) -> 46974.79 | P187: =ROUND(O187*1.19,2) -> 55900 | Q187: Peugeot Expert L2 BlueHDi 120 88 kW | R187: =ROUND(40307.56/1.16,2) -> 34747.9 | S187: =ROUNDDOWN(R187*1.19,2) -> 41350 | T187: 12227 | U187: 14550 | V187: Großraum-Van | W187: PKW | X187: 2020-12-22 | Y187: 5000 | Z187: 7227 | AA187: 9550
N188: Peugeot E-Traveller 75kWh (nur M1-Versionen) | O188: =ROUND(P188/1.19,2) -> 50117.65 | P188: 59640 | Q188: Toyota Proace Verso 106 kW, L1-Version | R188: =ROUND(S188/1.19,2) -> 44302.52 | S188: 52720 | T188: =IF(O188-R188>=0,ROUND(O188-R188,0),0) -> 5815 | U188: 6920 | V188: Großraum-Van | W188: PKW | X188: 2023-09-06 | Y188: 5000 | Z188: 815 | AA188: 1920
N189: Peugeot e-Rifter (alle Versionen) | O189: =ROUND(37590/1.19,2) -> 31588.24 | P189: =ROUNDDOWN(O189*1.19,2) -> 37590 | Q189: Peugeot e-Rifter PureTech 110 81 kW | R189: =ROUND(25140/1.19,2) -> 21126.05 | S189: =R189*1.19 -> 25139.9995 | T189: 10462 | U189: 12450 | V189: Großraum-Van | W189: PKW | X189: 2021-06-22 | Y189: =IF(O189>=40000,5000,6000) -> 6000 | Z189: 4462 | AA189: 6450
N190: Polestar 2 | O190: 48655.46 | P190: =ROUNDUP(O190*1.19,2) -> 57900 | Q190: Volvo S60 T6 AWD | R190: =ROUND(S190/1.19,2) -> 43865.55 | S190: 52200 | T190: 4790 | U190: 5700 | V190: Mittelklasse | W190: PKW | X190: 2020-12-22 | Y190: 5000 | Z190: 0 | AA190: 700
N191: Porsche Taycan (alle Versionen) | O191: nicht förderfähig gemäß Aufruf | P191: nicht förderfähig gemäß Aufruf | R191: 0 | V191: Oberklasse | W191: PKW | X191: 2020-12-18 | Y191: 0 | Z191: 0 | AA191: 0
N192: Renaut Kangoo E-TECH (alle Versionen) | O192: =ROUND(P192/1.19,2) -> 33025.21 | P192: 39300 | Q192: Renaut Kangoo TCe 74 kW | R192: 21806.72 | S192: 25950 | T192: =IF(O192-R192>=0,ROUND(O192-R192,0),0) -> 11218 | U192: 13350 | V192: Großraum-Van | W192: PKW | X192: 2023-09-06 | Y192: 6000 | Z192: =IF(T192-Y192>0,T192-Y192,0) -> 5218 | AA192: =IF(U192-Y192>0,U192-Y192,0) -> 7350
N193: Renault Megane E-TECH EV40 40kWh (alle Versionen) | O193: 35294.12 | P193: 42000 | Q193: Renault Megane TCe 140 103 kW | R193: 23949.58 | S193: 28500 | T193: 11345 | U193: 13500 | V193: Kompaktklasse | W193: PKW | X193: 2024-01-11 | Y193: =IF(O193>=40000,5000,6000) -> 6000 | Z193: =IF(T193-Y193>0,T193-Y193,0) -> 5345 | AA193: =IF(U193-Y193>0,U193-Y193,0) -> 7500
N194: Renault Megane E-TECH EV60 60kWh (alle Versionen) | O194: 39159.66 | P194: 46600 | Q194: Renault Megane TCe 140 103 kW | R194: 23949.58 | S194: 28500 | T194: 15210 | U194: 18100 | V194: Kompaktklasse | W194: PKW | X194: 2024-01-11 | Y194: 6000 | Z194: 9210 | AA194: 12100
M195: zuordnung Fzg-kl. Am 21.02.2024 geändert | N195: Renault Scenic E-Tech 170 Comfort Range (alle Versionen) | O195: 34789.92 | P195: 41400 | Q195: Renault Austral Mild Hybrid 116 kW | R195: 28529.41 | S195: 33950 | T195: 6261 | U195: 7450 | V195: Geländewagen / SUV | W195: PKW | X195: 2024-01-11 | Y195: 6000 | Z195: 261 | AA195: 1450
M196: zuordnung Fzg-kl. Am 21.02.2024 geändert | N196: Renault Scenic E-Tech 220 Long Range (alle Versionen) | O196: 41092.44 | P196: 48900 | Q196: Renault Austral Mild Hybrid 116 kW | R196: 28529.41 | S196: 33950 | T196: 12563 | U196: 14950 | V196: Geländewagen / SUV | W196: PKW | X196: 2024-01-11 | Y196: 5000 | Z196: 7563 | AA196: 9950
N197: Renault Zoe Z.E.40 (alle Versionen) | O197: =ROUND(29233.95/1.16,2) -> 25201.68 | P197: =ROUNDUP(O197*1.19,2) -> 29990 | Q197: Renault Clio Zen Sce 75/5-türig | R197: =ROUND(16350/1.19,2) -> 13739.5 | S197: =ROUNDDOWN(R197*1.19,2) -> 16350 | T197: =ROUND(O197-R197,0) -> 11462 | U197: =ROUND(P197-S197,0) -> 13640 | V197: Kleinwagen | W197: PKW | X197: 2020-12-22 | Y197: 6000 | Z197: =IF(T197-Y197>0,T197-Y197,0) -> 5462 | AA197: =IF(U197-Y197>0,U197-Y197,0) -> 7640
N198: Renault Zoe Z.E.50 (alle Versionen) | O198: =ROUND(31183.53/1.16,2) -> 26882.35 | P198: 31990 | Q198: Renault Clio Zen Sce 75/5-türig | R198: =ROUND(16350/1.19,2) -> 13739.5 | S198: =ROUNDDOWN(R198*1.19,2) -> 16350 | T198: =ROUND(O198-R198,0) -> 13143 | U198: =ROUND(P198-S198,0) -> 15640 | V198: Kleinwagen | W198: PKW | X198: 2020-12-22 | Y198: 6000 | Z198: 7143 | AA198: 9640
M199: zuordnung Fzg-kl. Am 21.02.2024 geändert | N199: Renault Twingo Electric (alle Versionen) | O199: =ROUND(P199/1.19,2) -> 23529.41 | P199: 28000 | Q199: Renault Twingo SCe 65 | R199: =ROUND(S199/1.19,2) -> 13529.41 | S199: 16100 | T199: =IF(O199-R199>=0,ROUND(O199-R199,0),0) -> 10000 | U199: 11900 | V199: Mini | W199: PKW | X199: 2020-12-18 | Y199: 6000 | Z199: 4000 | AA199: 5900
N200: Renault Twizy ( alle Versionen) | O200: =ROUND(12150/1.19,2) -> 10210.08 | P200: =ROUND(O200*1.19,2) -> 12150 | Q200: Kymco Maxxer S300 T ONROAD LOF (Quad) | R200: =ROUND(S200/1.19,2) -> 4242.86 | S200: 5049 | T200: =ROUND(O200-R200,0) -> 5967 | U200: 7101 | V200: Leichtfahrzeug | W200: LFZ | X200: 2020-12-22
N201: Renault Twizy 45 (alle Versionen) | O201: =ROUND(11450/1.19,2) -> 9621.85 | P201: =ROUND(O201*1.19,2) -> 11450 | Q201: Kymco Maxxer S300 T ONROAD LOF (Quad) | R201: 4242.86 | S201: 5049 | T201: 5379 | U201: 6401 | V201: Leichtfahrzeug | W201: LFZ | X201: 2020-12-22
N202: RollsRoyce Spectre | O202: nicht förderfähig gemäß Aufruf | V202: Oberklasse | W202: PKW | X202: 2024-03-13
N203: Silence SO4 11,2 kWh (alle Versionen) | O203: =ROUND(P203/1.19,2) -> 13145.38 | P203: 15643 | Q203: Aixam City Pack | R203: 10075.63 | S203: 11990 | T203: =IF(O203-R203>=0,ROUND(O203-R203,0),0) -> 3070 | U203: 3653 | V203: Leichtfahrzeug | W203: LFZ | X203: 2023-09-06
... 58 more rows

Sheet Sonderfahrzeuge
A1: Ermittlung der förderfähigen Ausgaben (EfA) für Sonderfahrzeuge | K1: =IF(Fahrzeuge!$L$1=0, " ","FKZ: 03EMI4"&Fahrzeuge!$L$1) -> 
A2: Hinweise:
A3: Hierfür müssen Sie entsprechende Angebote für das E-Fahrzeug und ein Referenzfahrzeug eingeholt haben. Diese Angebote sind beizufügen.
A4: =IF(Fahrzeuge!C6="","Bitte geben Sie auf der Registerkarte 'Fahrzeuge' an, ob Sie zum Vorsteuerabzug berechtigt sind.","") -> Bitte geben Sie auf der Registerkarte 'Fahrzeuge' an, ob Sie zum Vorsteuerabzug berechtigt sind.
A6: Pos. | B6: Typ E-Fahrzeug | C6: =IF(Fahrzeuge!$C$6="nein","Bruttopreis E-Fahrzeug laut beigefügtem Angebot *",IF(Fahrzeuge!$C$6="ja","Nettopreis E-Fahrzeug laut beigefügtem Angebot *","Bitte wählen sie aus, ob sie zum Vorsteuerabzug berechtigt sind!")) -> Bitte wählen sie aus, ob sie zum Vorsteuerabzug berechtigt sind! | D6: Typ Referenzfahrzeug | E6: =IF(Fahrzeuge!$C$6="nein","Bruttopreis Referenzfahrzeug laut beigefügtem Angebot *",IF(Fahrzeuge!$C$6="ja","Nettopreis Referenzfahrzeug laut beigefügtem Angebot *","Bitte wählen sie aus, ob sie zum Vorsteuerabzug berechtigt sind!")) -> Bitte wählen sie aus, ob sie zum Vorsteuerabzug berechtigt sind! | F6: =IF(Fahrzeuge!$C$6="nein","Förderfähige Ausgaben pro Fahrzeug (brutto)",IF(Fahrzeuge!$C$6="ja","Förderfähige Ausgaben pro Fahrzeug (netto)","Bitte wählen sie aus, ob sie zum Vorsteuerabzug berechtigt sind!")) -> Bitte wählen sie aus, ob sie zum Vorsteuerabzug berechtigt sind! | G6: Anzahl zu beschaffender Fahrzeuge des Typs | H6: erwartete durchschnittliche Jahres-Fahrleistung in km* | I6: * alternativ: erwartete Jahresbetriebs-stunden | J6: Förderfähige Ausgaben | K6: Korrekturfeld PtJ
A7: 1 | F7: =IF(B7>"",IF($A$4="",C7-E7,$F$6),"") ->  | J7: =IF(B7>"",F7*G7,"") -> 
A9: 2 | F9: =IF(B9>"",IF($A$4="",C9-E9,$F$6),"") ->  | J9: =IF(B9>"",F9*G9,"") -> 
A11: 3
A13: 4
A15: 5
A17: 6
A19: 7
A21: 8
A23: 9
A25: 10
A27: Summe | G27: =IF(COUNTA(G7:G25)=COUNTA(H7:I25),"","Anzahl oder Angabe Fahrleistung / Betr.-Std. fehlt oder doppelt") ->  | H27: =IFERROR("Ø: "&TEXT((SUMPRODUCT($G7:$G25,H7:H25)/SUMIFS($G7:$G25,H7:H25,">0")),"#.##0"),"") ->  | I27: =IFERROR("Ø: "&TEXT((SUMPRODUCT($G7:$G25,I7:I25)/SUMIFS($G7:$G25,I7:I25,">0")),"#.##0"),"") ->  | J27: =SUM(J7:J25) -> 0
A29: * Für Fahrzeuge, bei denen eine Jahresfahrleistung keine Relevanz hat, können auch die jährlichen Betriebsstunden angesetzt werden (z.B. bei Staplerfahrzeugen mit Li-Batterie)

Sheet Ladeinfrastruktur
A1: Ermittlung der förderfähigen Ausgaben (EfA) - Pauschalen für Ladeinfrastruktur | F1: =IF(Fahrzeuge!$L$1=0, " ","FKZ: 03EMI4"&Fahrzeuge!$L$1) -> 
A2: =IF(Fahrzeuge!C6="","Hinweis:","") -> Hinweis:
A3: =IF(Fahrzeuge!C6="","Bitte geben Sie auf der Registerkarte 'Fahrzeuge' an, ob Sie zum Vorsteuerabzug berechtigt sind","") -> Bitte geben Sie auf der Registerkarte 'Fahrzeuge' an, ob Sie zum Vorsteuerabzug berechtigt sind
A5: Pos. | B5: Typ Ladeinfrastruktur (LIS)* [Auswahlbox] | C5: =IF(Fahrzeuge!$C$6="nein","Förderfähige Ausgaben pro Ladesäule (brutto)",IF(Fahrzeuge!$C$6="ja","Förderfähige Ausgaben pro Ladesäule (netto)","Bitte wählen sie aus, ob sie zum Vorsteuerabzug berechtigt sind!")) -> Bitte wählen sie aus, ob sie zum Vorsteuerabzug berechtigt sind! | D5: Anzahl zu beschaffender Ladesäulen des Typs | E5: Förderfähige Ausgaben | F5: Korrekturfeld PtJ
A6: 1 | C6: =IF($B6>0,IF(Fahrzeuge!$C$6="nein",VLOOKUP($B6,$I$40:$K$52,3,0),IF(Fahrzeuge!$C$6="ja",VLOOKUP($B6,$I$40:$K$52,2,0),"Bitte wählen sie aus, ob sie zum Vorsteuerabzug berechtigt sind!")),"") ->  | E6: =IF(D6>0,C6*D6,"") -> 
A8: 2 | C8: =IF($B8>0,IF(Fahrzeuge!$C$6="nein",VLOOKUP($B8,$I$40:$K$52,3,0),IF(Fahrzeuge!$C$6="ja",VLOOKUP($B8,$I$40:$K$52,2,0),"Bitte wählen sie aus, ob sie zum Vorsteuerabzug berechtigt sind!")),"") ->  | E8: =IF(D8>0,C8*D8,"") -> 
A10: 3 | C10: =IF($B10>0,IF(Fahrzeuge!$C$6="nein",VLOOKUP($B10,$I$40:$K$52,3,0),IF(Fahrzeuge!$C$6="ja",VLOOKUP($B10,$I$40:$K$52,2,0),"Bitte wählen sie aus, ob sie zum Vorsteuerabzug berechtigt sind!")),"") ->  | E10: =IF(D10>0,C10*D10,"") -> 
A12: 4 | C12: =IF($B12>0,IF(Fahrzeuge!$C$6="nein",VLOOKUP($B12,$I$40:$K$52,3,0),IF(Fahrzeuge!$C$6="ja",VLOOKUP($B12,$I$40:$K$52,2,0),"Bitte wählen sie aus, ob sie zum Vorsteuerabzug berechtigt sind!")),"") ->  | E12: =IF(D12>0,C12*D12,"") -> 
A14: 5 | C14: =IF($B14>0,IF(Fahrzeuge!$C$6="nein",VLOOKUP($B14,$I$40:$K$52,3,0),IF(Fahrzeuge!$C$6="ja",VLOOKUP($B14,$I$40:$K$52,2,0),"Bitte wählen sie aus, ob sie zum Vorsteuerabzug berechtigt sind!")),"") ->  | E14: =IF(D14>0,C14*D14,"") -> 
A16: 6 | C16: =IF($B16>0,IF(Fahrzeuge!$C$6="nein",VLOOKUP($B16,$I$40:$K$52,3,0),IF(Fahrzeuge!$C$6="ja",VLOOKUP($B16,$I$40:$K$52,2,0),"Bitte wählen sie aus, ob sie zum Vorsteuerabzug berechtigt sind!")),"") ->  | E16: =IF(D16>0,C16*D16,"") -> 
A18: 7 | C18: =IF($B18>0,IF(Fahrzeuge!$C$6="nein",VLOOKUP($B18,$I$40:$K$52,3,0),IF(Fahrzeuge!$C$6="ja",VLOOKUP($B18,$I$40:$K$52,2,0),"Bitte wählen sie aus, ob sie zum Vorsteuerabzug berechtigt sind!")),"") ->  | E18: =IF(D18>0,C18*D18,"") -> 
A20: 8 | C20: =IF($B20>0,IF(Fahrzeuge!$C$6="nein",VLOOKUP($B20,$I$40:$K$52,3,0),IF(Fahrzeuge!$C$6="ja",VLOOKUP($B20,$I$40:$K$52,2,0),"Bitte wählen sie aus, ob sie zum Vorsteuerabzug berechtigt sind!")),"") ->  | E20: =IF(D20>0,C20*D20,"") -> 
A22: 9 | C22: =IF($B22>0,IF(Fahrzeuge!$C$6="nein",VLOOKUP($B22,$I$40:$K$52,3,0),IF(Fahrzeuge!$C$6="ja",VLOOKUP($B22,$I$40:$K$52,2,0),"Bitte wählen sie aus, ob sie zum Vorsteuerabzug berechtigt sind!")),"") ->  | E22: =IF(D22>0,C22*D22,"") -> 
A24: 10 | C24: =IF($B24>0,IF(Fahrzeuge!$C$6="nein",VLOOKUP($B24,$I$40:$K$52,3,0),IF(Fahrzeuge!$C$6="ja",VLOOKUP($B24,$I$40:$K$52,2,0),"Bitte wählen sie aus, ob sie zum Vorsteuerabzug berechtigt sind!")),"") ->  | E24: =IF(D24>0,C24*D24,"") -> 
A26: Summe | E26: =SUM(E6:E24) -> 0
A28: * öff. zugängl.: | B28: öffentlich zugängliche Ladepunkte im Sinne der Verordnung über technische Mindestanforderungen an den sicheren und interoperablen Aufbau und Betrieb von öffentlich zugänglichen Ladepunkten für Elektromobile (siehe Anlage 3 zum Förderaufruf)
A29: * nicht. öff. zugängl.: | B29: LIS ist für die Öffentlichkeit nicht zugänglich
A30: * DC : | B30: Gleichstrom-Ladeinfrastruktur
A31: * AC : | B31: Wechselstrom-Ladeinfrastruktur
I39: Typ Ladeinfrastruktur | J39: Ausgabenpauschale netto | K39: Ausgabenpauschale brutto
I40: Mobile Ladestationen [AC] ab 3,7 kW (1 Ladepunkt) | J40: 500 | K40: =J40*1.19 -> 595
I41: nicht öff. zugängl. [AC] ab 3,7 kW (1 Ladepunkt) | J41: 600 | K41: 714
I42: nicht öff. zugängl. [AC] ab 11 kW (min. 2 Ladepunkte) | J42: 3000 | K42: 3570
I43: nicht öff. zugängl. [DC] bis 25 kW | J43: 10000 | K43: 11900
I44: nicht öff. zugängl. [DC] 25-50 kW | J44: 20000 | K44: 23800
I45: nicht öff. zugängl. [DC] 51-149 kW | J45: 35000 | K45: 41650
I46: nicht öff. zugängl. [DC] ab 150 kW | J46: 50000 | K46: 59500
I47: öff. zugängl. [AC] ab 3,7 kW (1 Ladepunkt) | J47: =J41 -> 600 | K47: 714
I48: öff. zugängl. [AC] ab 11 kW (min. 2 Ladepunkte) | J48: =J42 -> 3000 | K48: =J48*1.19 -> 3570
I49: öff. zugängl. [DC] bis 25 kW | J49: 10000 | K49: 11900
I50: öff. zugängl. [DC] 25-50 kW | J50: =J44 -> 20000 | K50: 23800
I51: öff. zugängl. [DC] 51-149 kW | J51: =J45 -> 35000 | K51: 41650
I52: öff. zugängl. [DC] ab 150 kW | J52: =J46 -> 50000 | K52: 59500

Sheet spezielle Ladeinfrastruktur
A1: Ermittlung der förderfähigen Ausgaben für Ladeinfrastruktur, die nicht in der Registerkarte "Ladeinfrastruktur" aufgeführt wird | F1: =IF(Fahrzeuge!$L$1=0, " ","FKZ: 03EMI4"&Fahrzeuge!$L$1) -> 
A2: Hinweise:
A3: Hierfür müssen Sie entsprechende Angebote für die Ladeinfrastruktur eingeholt haben. Diese Angebote sind beizufügen.
A4: =IF(Fahrzeuge!C6="","Bitte geben Sie auf der Registerkarte 'Fahrzeuge' an, ob Sie zum Vorsteuerabzug berechtigt sind","") -> Bitte geben Sie auf der Registerkarte 'Fahrzeuge' an, ob Sie zum Vorsteuerabzug berechtigt sind
A6: Pos. | B6: Typ Ladeinfrastruktur (LIS) | C6: =IF(Fahrzeuge!$C$6="nein","Bruttopreis LIS laut beigefügtem Angebot *",IF(Fahrzeuge!$C$6="ja","Nettopreis LIS laut beigefügtem Angebot *","Bitte wählen sie aus, ob sie zum Vorsteuerabzug berechtigt sind!")) -> Bitte wählen sie aus, ob sie zum Vorsteuerabzug berechtigt sind! | D6: Anzahl zu beschaffender LIS dieses Typs | E6: Förderfähige Ausgaben | F6: Korrekturfeld PtJ
A7: 1 | E7: =IF(C7>0,D7*C7,"") -> 
A9: 2 | E9: =IF(C9>0,D9*C9,"") -> 
A11: 3 | E11: =IF(C11>0,D11*C11,"") -> 
A13: 4 | E13: =IF(C13>0,D13*C13,"") -> 
A15: 5 | E15: =IF(C15>0,D15*C15,"") -> 
A17: 6 | E17: =IF(C17>0,D17*C17,"") -> 
A19: 7 | E19: =IF(C19>0,D19*C19,"") -> 
A21: 8 | E21: =IF(C21>0,D21*C21,"") -> 
A23: 9 | E23: =IF(C23>0,D23*C23,"") -> 
A25: 10 | E25: =IF(C25>0,D25*C25,"") -> 
A27: Summe | E27: =IF(C7>0,SUM(E7:E25),"") -> 

Sheet Vorlage für AZA
A1: Hinweis: | E1: =IF(Fahrzeuge!$L$1=0, " ","FKZ: 03EMI4"&Fahrzeuge!$L$1) -> 
A2: Vorlage zum Übertragen der Daten aus dieser Tabelle in den AZA-Antrag in easy-Online.
A3: Bitte kopieren Sie die Bezeichung wie hier dargestellt in das easy-Online-Formular.
A4: Die Anzahl der zu beschaffenden Fahrzeuge/ Ladeinfrastruktur muss ggf. auf die Anschaffungsjahre aufgeteilt werden.
A5: Beachten Sie, dass die hier angegebene Summe mit den Gesamtmitteln im easy-Online-Antrag überein stimmen müssen.
A6: =IF(Fahrzeuge!$C$6="nein","Der Antragsteller ist nicht zum Vorsteuerabzug berechtigt.",IF(Fahrzeuge!$C$6="ja","Der Antragsteller ist zum Vorsteuerabzug berechtigt.","Bitte wählen sie aus, ob sie zum Vorsteuerabzug berechtigt sind!")) -> Bitte wählen sie aus, ob sie zum Vorsteuerabzug berechtigt sind!
A7: (sollte diese Aussage nicht zutreffen, wählen Sie bitte die entsprechende Option auf der Registerkarte "Fahrzeuge")
A9: Gesamtfinanzierung - Gegenstände und andere Investitionen von mehr als 410 € im Einzelfall
A11: lfd. Nr. | B11: Bezeichnung | C11: Zuwendungsfähige Ausgaben / Stück | D11: Anzahl | E11: F0833 Betrag €
A12: =IF(Fahrzeuge!$B15>"",Fahrzeuge!A15,0) -> 0 | B12: =IF(Fahrzeuge!$B15>"",CONCATENATE(Fahrzeuge!AI15," ",Fahrzeuge!B15),"") ->  | C12: =IF(Fahrzeuge!$B15>"",Fahrzeuge!G15,"") ->  | D12: =IF(Fahrzeuge!$B15>"",Fahrzeuge!I15,"") ->  | E12: =IF(Fahrzeuge!$B15>"",Fahrzeuge!K15,"") -> 
A13: =IF(Fahrzeuge!B16>"",Fahrzeuge!A16,A12) -> 0 | B13: =IF(Fahrzeuge!$B16>"",CONCATENATE(Fahrzeuge!AI16," ",Fahrzeuge!B16),"") ->  | C13: =IF(Fahrzeuge!$B16>"",Fahrzeuge!G16,"") ->  | D13: =IF(Fahrzeuge!$B16>"",Fahrzeuge!I16,"") ->  | E13: =IF(Fahrzeuge!$B16>"",Fahrzeuge!K16,"") -> 
A14: =IF(Fahrzeuge!B17>"",Fahrzeuge!A17,A13) -> 0 | B14: =IF(Fahrzeuge!$B17>"",CONCATENATE(Fahrzeuge!AI17," ",Fahrzeuge!B17),"") ->  | C14: =IF(Fahrzeuge!$B17>"",Fahrzeuge!G17,"") ->  | D14: =IF(Fahrzeuge!$B17>"",Fahrzeuge!I17,"") ->  | E14: =IF(Fahrzeuge!$B17>"",Fahrzeuge!K17,"") -> 
A15: =IF(Fahrzeuge!B18>"",Fahrzeuge!A18,A14) -> 0 | B15: =IF(Fahrzeuge!$B18>"",CONCATENATE(Fahrzeuge!AI18," ",Fahrzeuge!B18),"") ->  | C15: =IF(Fahrzeuge!$B18>"",Fahrzeuge!G18,"") ->  | D15: =IF(Fahrzeuge!$B18>"",Fahrzeuge!I18,"") ->  | E15: =IF(Fahrzeuge!$B18>"",Fahrzeuge!K18,"") -> 
A16: =IF(Fahrzeuge!B19>"",Fahrzeuge!A19,A15) -> 0 | B16: =IF(Fahrzeuge!$B19>"",CONCATENATE(Fahrzeuge!AI19," ",Fahrzeuge!B19),"") ->  | C16: =IF(Fahrzeuge!$B19>"",Fahrzeuge!G19,"") ->  | D16: =IF(Fahrzeuge!$B19>"",Fahrzeuge!I19,"") ->  | E16: =IF(Fahrzeuge!$B19>"",Fahrzeuge!K19,"") -> 
A17: =IF(Fahrzeuge!B20>"",Fahrzeuge!A20,A16) -> 0 | B17: =IF(Fahrzeuge!$B20>"",CONCATENATE(Fahrzeuge!AI20," ",Fahrzeuge!B20),"") ->  | C17: =IF(Fahrzeuge!$B20>"",Fahrzeuge!G20,"") ->  | D17: =IF(Fahrzeuge!$B20>"",Fahrzeuge!I20,"") ->  | E17: =IF(Fahrzeuge!$B20>"",Fahrzeuge!K20,"") -> 
A18: =IF(Fahrzeuge!B21>"",Fahrzeuge!A21,A17) -> 0 | B18: =IF(Fahrzeuge!$B21>"",CONCATENATE(Fahrzeuge!AI21," ",Fahrzeuge!B21),"") ->  | C18: =IF(Fahrzeuge!$B21>"",Fahrzeuge!G21,"") ->  | D18: =IF(Fahrzeuge!$B21>"",Fahrzeuge!I21,"") ->  | E18: =IF(Fahrzeuge!$B21>"",Fahrzeuge!K21,"") -> 
A19: =IF(Fahrzeuge!B22>"",Fahrzeuge!A22,A18) -> 0 | B19: =IF(Fahrzeuge!$B22>"",CONCATENATE(Fahrzeuge!AI22," ",Fahrzeuge!B22),"") ->  | C19: =IF(Fahrzeuge!$B22>"",Fahrzeuge!G22,"") ->  | D19: =IF(Fahrzeuge!$B22>"",Fahrzeuge!I22,"") ->  | E19: =IF(Fahrzeuge!$B22>"",Fahrzeuge!K22,"") -> 
A20: =IF(Fahrzeuge!B23>"",Fahrzeuge!A23,A19) -> 0 | B20: =IF(Fahrzeuge!$B23>"",CONCATENATE(Fahrzeuge!AI23," ",Fahrzeuge!B23),"") ->  | C20: =IF(Fahrzeuge!$B23>"",Fahrzeuge!G23,"") ->  | D20: =IF(Fahrzeuge!$B23>"",Fahrzeuge!I23,"") ->  | E20: =IF(Fahrzeuge!$B23>"",Fahrzeuge!K23,"") -> 
A21: =IF(Fahrzeuge!B24>"",Fahrzeuge!A24,A20) -> 0 | B21: =IF(Fahrzeuge!$B24>"",CONCATENATE(Fahrzeuge!AI24," ",Fahrzeuge!B24),"") ->  | C21: =IF(Fahrzeuge!$B24>"",Fahrzeuge!G24,"") ->  | D21: =IF(Fahrzeuge!$B24>"",Fahrzeuge!I24,"") ->  | E21: =IF(Fahrzeuge!$B24>"",Fahrzeuge!K24,"") -> 
A22: =IF(Fahrzeuge!B25>"",Fahrzeuge!A25,A21) -> 0 | B22: =IF(Fahrzeuge!$B25>"",CONCATENATE(Fahrzeuge!AI25," ",Fahrzeuge!B25),"") ->  | C22: =IF(Fahrzeuge!$B25>"",Fahrzeuge!G25,"") ->  | D22: =IF(Fahrzeuge!$B25>"",Fahrzeuge!I25,"") ->  | E22: =IF(Fahrzeuge!$B25>"",Fahrzeuge!K25,"") -> 
A23: =IF(Fahrzeuge!B26>"",Fahrzeuge!A26,A22) -> 0 | B23: =IF(Fahrzeuge!$B26>"",CONCATENATE(Fahrzeuge!AI26," ",Fahrzeuge!B26),"") ->  | C23: =IF(Fahrzeuge!$B26>"",Fahrzeuge!G26,"") ->  | D23: =IF(Fahrzeuge!$B26>"",Fahrzeuge!I26,"") ->  | E23: =IF(Fahrzeuge!$B26>"",Fahrzeuge!K26,"") -> 
A24: =IF(Fahrzeuge!B27>"",Fahrzeuge!A27,A23) -> 0 | B24: =IF(Fahrzeuge!$B27>"",CONCATENATE(Fahrzeuge!AI27," ",Fahrzeuge!B27),"") ->  | C24: =IF(Fahrzeuge!$B27>"",Fahrzeuge!G27,"") ->  | D24: =IF(Fahrzeuge!$B27>"",Fahrzeuge!I27,"") ->  | E24: =IF(Fahrzeuge!$B27>"",Fahrzeuge!K27,"") -> 
A25: =IF(Fahrzeuge!B28>"",Fahrzeuge!A28,A24) -> 0 | B25: =IF(Fahrzeuge!$B28>"",CONCATENATE(Fahrzeuge!AI28," ",Fahrzeuge!B28),"") ->  | C25: =IF(Fahrzeuge!$B28>"",Fahrzeuge!G28,"") ->  | D25: =IF(Fahrzeuge!$B28>"",Fahrzeuge!I28,"") ->  | E25: =IF(Fahrzeuge!$B28>"",Fahrzeuge!K28,"") -> 
A26: =IF(Fahrzeuge!B29>"",Fahrzeuge!A29,A25) -> 0 | B26: =IF(Fahrzeuge!$B29>"",CONCATENATE(Fahrzeuge!AI29," ",Fahrzeuge!B29),"") ->  | C26: =IF(Fahrzeuge!$B29>"",Fahrzeuge!G29,"") ->  | D26: =IF(Fahrzeuge!$B29>"",Fahrzeuge!I29,"") ->  | E26: =IF(Fahrzeuge!$B29>"",Fahrzeuge!K29,"") -> 
A27: =IF(Fahrzeuge!B30>"",Fahrzeuge!A30,A26) -> 0 | B27: =IF(Fahrzeuge!$B30>"",CONCATENATE(Fahrzeuge!AI30," ",Fahrzeuge!B30),"") ->  | C27: =IF(Fahrzeuge!$B30>"",Fahrzeuge!G30,"") ->  | D27: =IF(Fahrzeuge!$B30>"",Fahrzeuge!I30,"") ->  | E27: =IF(Fahrzeuge!$B30>"",Fahrzeuge!K30,"") -> 
A28: =IF(Fahrzeuge!B31>"",Fahrzeuge!A31,A27) -> 0 | B28: =IF(Fahrzeuge!$B31>"",CONCATENATE(Fahrzeuge!AI31," ",Fahrzeuge!B31),"") ->  | C28: =IF(Fahrzeuge!$B31>"",Fahrzeuge!G31,"") ->  | D28: =IF(Fahrzeuge!$B31>"",Fahrzeuge!I31,"") ->  | E28: =IF(Fahrzeuge!$B31>"",Fahrzeuge!K31,"") -> 
A29: =IF(Fahrzeuge!B32>"",Fahrzeuge!A32,A28) -> 0 | B29: =IF(Fahrzeuge!$B32>"",CONCATENATE(Fahrzeuge!AI32," ",Fahrzeuge!B32),"") ->  | C29: =IF(Fahrzeuge!$B32>"",Fahrzeuge!G32,"") ->  | D29: =IF(Fahrzeuge!$B32>"",Fahrzeuge!I32,"") ->  | E29: =IF(Fahrzeuge!$B32>"",Fahrzeuge!K32,"") -> 
A30: =IF(Fahrzeuge!B33>"",Fahrzeuge!A33,A29) -> 0 | B30: =IF(Fahrzeuge!$B33>"",CONCATENATE(Fahrzeuge!AI33," ",Fahrzeuge!B33),"") ->  | C30: =IF(Fahrzeuge!$B33>"",Fahrzeuge!G33,"") ->  | D30: =IF(Fahrzeuge!$B33>"",Fahrzeuge!I33,"") ->  | E30: =IF(Fahrzeuge!$B33>"",Fahrzeuge!K33,"") -> 
A31: =IF(Fahrzeuge!B34>"",Fahrzeuge!A34,A30) -> 0 | B31: =IF(Fahrzeuge!$B34>"",CONCATENATE(Fahrzeuge!AI34," ",Fahrzeuge!B34),"") ->  | C31: =IF(Fahrzeuge!$B34>"",Fahrzeuge!G34,"") ->  | D31: =IF(Fahrzeuge!$B34>"",Fahrzeuge!I34,"") ->  | E31: =IF(Fahrzeuge!$B34>"",Fahrzeuge!K34,"") -> 
A32: =IF(Sonderfahrzeuge!B7>"",A31+1,A31) -> 0 | B32: =IF(Sonderfahrzeuge!$B7>"",CONCATENATE("LKW bzw. SFZ ",Sonderfahrzeuge!$B7),"") ->  | C32: =IF(Sonderfahrzeuge!$B7>"",Sonderfahrzeuge!F7,"") ->  | D32: =IF(Sonderfahrzeuge!$B7>"",Sonderfahrzeuge!G7,"") ->  | E32: =IF(Sonderfahrzeuge!$B7>"",Sonderfahrzeuge!J7,"") -> 
A33: =IF(Sonderfahrzeuge!B9>"",A32+1,A32) -> 0 | B33: =IF(Sonderfahrzeuge!$B9>"",CONCATENATE("LKW bzw. SFZ ",Sonderfahrzeuge!$B9),"") ->  | C33: =IF(Sonderfahrzeuge!$B9>"",Sonderfahrzeuge!F9,"") ->  | D33: =IF(Sonderfahrzeuge!$B9>"",Sonderfahrzeuge!G9,"") ->  | E33: =IF(Sonderfahrzeuge!$B9>"",Sonderfahrzeuge!J9,"") -> 
A34: =IF(Sonderfahrzeuge!B11>"",A33+1,A33) -> 0 | B34: =IF(Sonderfahrzeuge!$B11>"",CONCATENATE("LKW bzw. SFZ ",Sonderfahrzeuge!$B11),"") ->  | C34: =IF(Sonderfahrzeuge!$B11>"",Sonderfahrzeuge!F11,"") ->  | D34: =IF(Sonderfahrzeuge!$B11>"",Sonderfahrzeuge!G11,"") ->  | E34: =IF(Sonderfahrzeuge!$B11>"",Sonderfahrzeuge!J11,"") -> 
A35: =IF(Sonderfahrzeuge!B13>"",A34+1,A34) -> 0 | B35: =IF(Sonderfahrzeuge!$B13>"",CONCATENATE("LKW bzw. SFZ ",Sonderfahrzeuge!$B13),"") ->  | C35: =IF(Sonderfahrzeuge!$B13>"",Sonderfahrzeuge!F13,"") ->  | D35: =IF(Sonderfahrzeuge!$B13>"",Sonderfahrzeuge!G13,"") ->  | E35: =IF(Sonderfahrzeuge!$B13>"",Sonderfahrzeuge!J13,"") -> 
A36: =IF(Sonderfahrzeuge!B15>"",A35+1,A35) -> 0 | B36: =IF(Sonderfahrzeuge!$B15>"",CONCATENATE("LKW bzw. SFZ ",Sonderfahrzeuge!$B15),"") ->  | C36: =IF(Sonderfahrzeuge!$B15>"",Sonderfahrzeuge!F15,"") ->  | D36: =IF(Sonderfahrzeuge!$B15>"",Sonderfahrzeuge!G15,"") ->  | E36: =IF(Sonderfahrzeuge!$B15>"",Sonderfahrzeuge!J15,"") -> 
A37: =IF(Sonderfahrzeuge!B17>"",A36+1,A36) -> 0 | B37: =IF(Sonderfahrzeuge!$B17>"",CONCATENATE("LKW bzw. SFZ ",Sonderfahrzeuge!$B17),"") ->  | C37: =IF(Sonderfahrzeuge!$B17>"",Sonderfahrzeuge!F17,"") ->  | D37: =IF(Sonderfahrzeuge!$B17>"",Sonderfahrzeuge!G17,"") ->  | E37: =IF(Sonderfahrzeuge!$B17>"",Sonderfahrzeuge!J17,"") -> 
A38: =IF(Sonderfahrzeuge!B19>"",A37+1,A37) -> 0 | B38: =IF(Sonderfahrzeuge!$B19>"",CONCATENATE("LKW bzw. SFZ ",Sonderfahrzeuge!$B19),"") ->  | C38: =IF(Sonderfahrzeuge!$B19>"",Sonderfahrzeuge!F19,"") ->  | D38: =IF(Sonderfahrzeuge!$B19>"",Sonderfahrzeuge!G19,"") ->  | E38: =IF(Sonderfahrzeuge!$B19>"",Sonderfahrzeuge!J19,"") -> 
A39: =IF(Sonderfahrzeuge!B21>"",A38+1,A38) -> 0 | B39: =IF(Sonderfahrzeuge!$B21>"",CONCATENATE("LKW bzw. SFZ ",Sonderfahrzeuge!$B21),"") ->  | C39: =IF(Sonderfahrzeuge!$B21>"",Sonderfahrzeuge!F21,"") ->  | D39: =IF(Sonderfahrzeuge!$B21>"",Sonderfahrzeuge!G21,"") ->  | E39: =IF(Sonderfahrzeuge!$B21>"",Sonderfahrzeuge!J21,"") -> 
A40: =IF(Sonderfahrzeuge!B23>"",A39+1,A39) -> 0 | B40: =IF(Sonderfahrzeuge!$B23>"",CONCATENATE("LKW bzw. SFZ ",Sonderfahrzeuge!$B23),"") ->  | C40: =IF(Sonderfahrzeuge!$B23>"",Sonderfahrzeuge!F23,"") ->  | D40: =IF(Sonderfahrzeuge!$B23>"",Sonderfahrzeuge!G23,"") ->  | E40: =IF(Sonderfahrzeuge!$B23>"",Sonderfahrzeuge!J23,"") -> 
A41: =IF(Sonderfahrzeuge!B25>"",A40+1,A40) -> 0 | B41: =IF(Sonderfahrzeuge!$B25>"",CONCATENATE("LKW bzw. SFZ ",Sonderfahrzeuge!$B25),"") ->  | C41: =IF(Sonderfahrzeuge!$B25>"",Sonderfahrzeuge!F25,"") ->  | D41: =IF(Sonderfahrzeuge!$B25>"",Sonderfahrzeuge!G25,"") ->  | E41: =IF(Sonderfahrzeuge!$B25>"",Sonderfahrzeuge!J25,"") -> 
A42: =IF(Ladeinfrastruktur!$B6>"",A41+1,A41) -> 0 | B42: =IF(Ladeinfrastruktur!$B6>"",CONCATENATE(" LIS ",Ladeinfrastruktur!B6),"") ->  | C42: =IF($B42>"",Ladeinfrastruktur!C6,"") ->  | D42: =IF($B42>"",Ladeinfrastruktur!D6,"") ->  | E42: =IF($B42>"",Ladeinfrastruktur!E6,"") -> 
A43: =IF(Ladeinfrastruktur!$B8>"",A42+1,A42) -> 0 | B43: =IF(Ladeinfrastruktur!$B8>"",CONCATENATE(" LIS ",Ladeinfrastruktur!B8),"") ->  | C43: =IF($B43>"",Ladeinfrastruktur!C8,"") ->  | D43: =IF($B43>"",Ladeinfrastruktur!D8,"") ->  | E43: =IF($B43>"",Ladeinfrastruktur!E8,"") -> 
A44: =IF(Ladeinfrastruktur!$B10>"",A43+1,A43) -> 0 | B44: =IF(Ladeinfrastruktur!$B10>"",CONCATENATE(" LIS ",Ladeinfrastruktur!B10),"") ->  | C44: =IF($B44>"",Ladeinfrastruktur!C10,"") ->  | D44: =IF($B44>"",Ladeinfrastruktur!D10,"") ->  | E44: =IF($B44>"",Ladeinfrastruktur!E10,"") -> 
A45: =IF(Ladeinfrastruktur!$B12>"",A44+1,A44) -> 0 | B45: =IF(Ladeinfrastruktur!$B12>"",CONCATENATE(" LIS ",Ladeinfrastruktur!B12),"") ->  | C45: =IF($B45>"",Ladeinfrastruktur!C12,"") ->  | D45: =IF($B45>"",Ladeinfrastruktur!D12,"") ->  | E45: =IF($B45>"",Ladeinfrastruktur!E12,"") -> 
A46: =IF(Ladeinfrastruktur!$B14>"",A45+1,A45) -> 0 | B46: =IF(Ladeinfrastruktur!$B14>"",CONCATENATE(" LIS ",Ladeinfrastruktur!B14),"") ->  | C46: =IF($B46>"",Ladeinfrastruktur!C14,"") ->  | D46: =IF($B46>"",Ladeinfrastruktur!D14,"") ->  | E46: =IF($B46>"",Ladeinfrastruktur!E14,"") -> 
A47: =IF(Ladeinfrastruktur!$B16>"",A46+1,A46) -> 0 | B47: =IF(Ladeinfrastruktur!$B16>"",CONCATENATE(" LIS ",Ladeinfrastruktur!B16),"") ->  | C47: =IF($B47>"",Ladeinfrastruktur!C16,"") ->  | D47: =IF($B47>"",Ladeinfrastruktur!D16,"") ->  | E47: =IF($B47>"",Ladeinfrastruktur!E16,"") -> 
A48: =IF(Ladeinfrastruktur!$B18>"",A47+1,A47) -> 0 | B48: =IF(Ladeinfrastruktur!$B18>"",CONCATENATE(" LIS ",Ladeinfrastruktur!B18),"") ->  | C48: =IF($B48>"",Ladeinfrastruktur!C18,"") ->  | D48: =IF($B48>"",Ladeinfrastruktur!D18,"") ->  | E48: =IF($B48>"",Ladeinfrastruktur!E18,"") -> 
A49: =IF(Ladeinfrastruktur!$B20>"",A48+1,A48) -> 0 | B49: =IF(Ladeinfrastruktur!$B20>"",CONCATENATE(" LIS ",Ladeinfrastruktur!B20),"") ->  | C49: =IF($B49>"",Ladeinfrastruktur!C20,"") ->  | D49: =IF($B49>"",Ladeinfrastruktur!D20,"") ->  | E49: =IF($B49>"",Ladeinfrastruktur!E20,"") -> 
A50: =IF(Ladeinfrastruktur!$B22>"",A49+1,A49) -> 0 | B50: =IF(Ladeinfrastruktur!$B22>"",CONCATENATE(" LIS ",Ladeinfrastruktur!B22),"") ->  | C50: =IF($B50>"",Ladeinfrastruktur!C22,"") ->  | D50: =IF($B50>"",Ladeinfrastruktur!D22,"") ->  | E50: =IF($B50>"",Ladeinfrastruktur!E22,"") -> 
A51: =IF(Ladeinfrastruktur!$B24>"",A50+1,A50) -> 0 | B51: =IF(Ladeinfrastruktur!$B24>"",CONCATENATE(" LIS ",Ladeinfrastruktur!B24),"") ->  | C51: =IF($B51>"",Ladeinfrastruktur!C24,"") ->  | D51: =IF($B51>"",Ladeinfrastruktur!D24,"") ->  | E51: =IF($B51>"",Ladeinfrastruktur!E24,"") -> 
A52: =IF('spezielle Ladeinfrastruktur'!$B7>"",A51+1,A51) -> 0 | B52: =IF('spezielle Ladeinfrastruktur'!B7>"",CONCATENATE(" LIS ",'spezielle Ladeinfrastruktur'!B7),"") ->  | C52: =IF('spezielle Ladeinfrastruktur'!$B7>"",'spezielle Ladeinfrastruktur'!C7,"") ->  | D52: =IF('spezielle Ladeinfrastruktur'!$B7>"",'spezielle Ladeinfrastruktur'!D7,"") ->  | E52: =IF('spezielle Ladeinfrastruktur'!$B7>"",'spezielle Ladeinfrastruktur'!E7,"") -> 
A53: =IF('spezielle Ladeinfrastruktur'!$B9>"",A52+1,A52) -> 0 | B53: =IF('spezielle Ladeinfrastruktur'!B9>"",CONCATENATE(" LIS ",'spezielle Ladeinfrastruktur'!B9),"") ->  | C53: =IF('spezielle Ladeinfrastruktur'!$B9>"",'spezielle Ladeinfrastruktur'!C9,"") ->  | D53: =IF('spezielle Ladeinfrastruktur'!$B9>"",'spezielle Ladeinfrastruktur'!D9,"") ->  | E53: =IF('spezielle Ladeinfrastruktur'!$B9>"",'spezielle Ladeinfrastruktur'!E9,"") -> 
A54: =IF('spezielle Ladeinfrastruktur'!$B11>"",A53+1,A53) -> 0 | B54: =IF('spezielle Ladeinfrastruktur'!B11>"",CONCATENATE(" LIS ",'spezielle Ladeinfrastruktur'!B11),"") ->  | C54: =IF('spezielle Ladeinfrastruktur'!$B11>"",'spezielle Ladeinfrastruktur'!C11,"") ->  | D54: =IF('spezielle Ladeinfrastruktur'!$B11>"",'spezielle Ladeinfrastruktur'!D11,"") ->  | E54: =IF('spezielle Ladeinfrastruktur'!$B11>"",'spezielle Ladeinfrastruktur'!E11,"") -> 
A55: =IF('spezielle Ladeinfrastruktur'!$B13>"",A54+1,A54) -> 0 | B55: =IF('spezielle Ladeinfrastruktur'!B13>"",CONCATENATE(" LIS ",'spezielle Ladeinfrastruktur'!B13),"") ->  | C55: =IF('spezielle Ladeinfrastruktur'!$B13>"",'spezielle Ladeinfrastruktur'!C13,"") ->  | D55: =IF('spezielle Ladeinfrastruktur'!$B13>"",'spezielle Ladeinfrastruktur'!D13,"") ->  | E55: =IF('spezielle Ladeinfrastruktur'!$B13>"",'spezielle Ladeinfrastruktur'!E13,"") -> 
A56: =IF('spezielle Ladeinfrastruktur'!$B15>"",A55+1,A55) -> 0 | B56: =IF('spezielle Ladeinfrastruktur'!B15>"",CONCATENATE(" LIS ",'spezielle Ladeinfrastruktur'!B15),"") ->  | C56: =IF('spezielle Ladeinfrastruktur'!$B15>"",'spezielle Ladeinfrastruktur'!C15,"") ->  | D56: =IF('spezielle Ladeinfrastruktur'!$B15>"",'spezielle Ladeinfrastruktur'!D15,"") ->  | E56: =IF('spezielle Ladeinfrastruktur'!$B15>"",'spezielle Ladeinfrastruktur'!E15,"") -> 
A57: =IF('spezielle Ladeinfrastruktur'!$B17>"",A56+1,A56) -> 0 | B57: =IF('spezielle Ladeinfrastruktur'!B17>"",CONCATENATE(" LIS ",'spezielle Ladeinfrastruktur'!B17),"") ->  | C57: =IF('spezielle Ladeinfrastruktur'!$B17>"",'spezielle Ladeinfrastruktur'!C17,"") ->  | D57: =IF('spezielle Ladeinfrastruktur'!$B17>"",'spezielle Ladeinfrastruktur'!D17,"") ->  | E57: =IF('spezielle Ladeinfrastruktur'!$B17>"",'spezielle Ladeinfrastruktur'!E17,"") -> 
A58: =IF('spezielle Ladeinfrastruktur'!$B19>"",A57+1,A57) -> 0 | B58: =IF('spezielle Ladeinfrastruktur'!B19>"",CONCATENATE(" LIS ",'spezielle Ladeinfrastruktur'!B19),"") ->  | C58: =IF('spezielle Ladeinfrastruktur'!$B19>"",'spezielle Ladeinfrastruktur'!C19,"") ->  | D58: =IF('spezielle Ladeinfrastruktur'!$B19>"",'spezielle Ladeinfrastruktur'!D19,"") ->  | E58: =IF('spezielle Ladeinfrastruktur'!$B19>"",'spezielle Ladeinfrastruktur'!E19,"") -> 
A59: =IF('spezielle Ladeinfrastruktur'!$B21>"",A58+1,A58) -> 0 | B59: =IF('spezielle Ladeinfrastruktur'!B21>"",CONCATENATE(" LIS ",'spezielle Ladeinfrastruktur'!B21),"") ->  | C59: =IF('spezielle Ladeinfrastruktur'!$B21>"",'spezielle Ladeinfrastruktur'!C21,"") ->  | D59: =IF('spezielle Ladeinfrastruktur'!$B21>"",'spezielle Ladeinfrastruktur'!D21,"") ->  | E59: =IF('spezielle Ladeinfrastruktur'!$B21>"",'spezielle Ladeinfrastruktur'!E21,"") -> 
A60: =IF('spezielle Ladeinfrastruktur'!$B23>"",A59+1,A59) -> 0 | B60: =IF('spezielle Ladeinfrastruktur'!B23>"",CONCATENATE(" LIS ",'spezielle Ladeinfrastruktur'!B23),"") ->  | C60: =IF('spezielle Ladeinfrastruktur'!$B23>"",'spezielle Ladeinfrastruktur'!C23,"") ->  | D60: =IF('spezielle Ladeinfrastruktur'!$B23>"",'spezielle Ladeinfrastruktur'!D23,"") ->  | E60: =IF('spezielle Ladeinfrastruktur'!$B23>"",'spezielle Ladeinfrastruktur'!E23,"") -> 
A61: =IF('spezielle Ladeinfrastruktur'!$B25>"",A60+1,A60) -> 0 | B61: =IF('spezielle Ladeinfrastruktur'!B25>"",CONCATENATE(" LIS ",'spezielle Ladeinfrastruktur'!B25),"") ->  | C61: =IF('spezielle Ladeinfrastruktur'!$B25>"",'spezielle Ladeinfrastruktur'!C25,"") ->  | D61: =IF('spezielle Ladeinfrastruktur'!$B25>"",'spezielle Ladeinfrastruktur'!D25,"") ->  | E61: =IF('spezielle Ladeinfrastruktur'!$B25>"",'spezielle Ladeinfrastruktur'!E25,"") -> 
D62: Summe: | E62: =ROUND(SUM(E12:E61),0) -> 0
C64: Mindestfördersumme erreicht bei FQ | D64: 0.4 | E64: =IF(Fahrzeuge!$C$6="ja",IF(E$62*D64>8999,"Ja","Nein"),IF(E$62*D64>10709,"Ja","Nein")) -> Nein
C65: Mindestfördersumme erreicht bei FQ | D65: 0.5 | E65: =IF(Fahrzeuge!$C$6="ja",IF(E$62*D65>8999,"Ja","Nein"),IF(E$62*D65>10709,"Ja","Nein")) -> Nein
C66: Mindestfördersumme erreicht bei FQ | D66: 0.6 | E66: =IF(Fahrzeuge!$C$6="ja",IF(E$62*D66>8999,"Ja","Nein"),IF(E$62*D66>10709,"Ja","Nein")) -> Nein
C67: Mindestfördersumme erreicht bei FQ | D67: 0.9 | E67: =IF(Fahrzeuge!$C$6="ja",IF(E$62*D67>8999,"Ja","Nein"),IF(E$62*D67>10709,"Ja","Nein")) -> Nein
